Workbook

Sheet Simulation
R2: Heat Rate | AB2: =E21 -> 7
E3: Daily Vol | F3: Annual | G3: Mean Rev | H3: Spike Prob | I3: Spike Amt | J3: Std Dev | R3: Var Cost | AB3: =F21 -> 2 | AF3: Volatility | AG3: =E6 -> 0.13 | AH3: Heat Rate | AI3: =D5 -> 7.9 | AJ3: Mean Elec | AK3: =STDEV(AN14:AN20) -> 0.5780765929 | AL3: =D6 -> 66.36 | AM3: Average | AN3: =AVERAGE(AJ13:AJ20) -> 133.0337553 | BF3: =COLUMN() -> 58
B4: 84 | C4: Gas Price | D4: =B4/10 -> 8.4 | E4: 0.049 | F4: 0.36 | G4: 0.0125 | R4: Outage | AB4: =G21 -> 0.06 | AQ4: Price Levels
B5: 79 | C5: Heat Rate | D5: =B5/10 -> 7.9 | E5: 0.12 | F5: 0.09 | G5: 0.015 | AG5: Gas | AH5: Elec | BE5: Max | BF5: =MAX(BF12:BF112) -> 251.7377328 | BH5: =MAX(BH12:BH112) -> 65.16440405 | BJ5: =MAX(BJ12:BJ112) -> 770.3787109
B6: 13 | C6: Electricity | D6: =D4*D5 -> 66.36 | E6: =B6/100 -> 0.13 | F6: 0.3 | G6: 0.1 | H6: 0.01 | I6: 0.5 | O6: Correlation | Q6: =CORREL(Q13:Q2943,R13:R2943) -> 0.7806477495 | T6: Stdev | U6: =STDEV(U14:U2943) -> 0.1357610561 | X6: Correl | Y6: =CORREL(X13:X2943,Y13:Y2943) -> 0.398581078 | AF6: Stdev | AG6: =STDEV(AG14:AG17) -> 0.0707086531 | AH6: =STDEV(AH14:AH17) -> 0.1144338594 | AQ6: Lower Bound | AR6: 1.7 | AS6: 25 | AU6: -100000 | AV6: -100000 | BE6: Min | BF6: =MIN(BF12:BF112) -> 92.88174797 | BH6: =MIN(BH12:BH112) -> 19.4870549 | BJ6: =MIN(BJ12:BJ112) -> 427.0325766
BE7: Avearge | BF7: =AVERAGE(BF12:BF112) -> 134.5437477 | BH7: =AVERAGE(BH12:BH112) -> 37.11035542 | BJ7: =AVERAGE(BJ12:BJ112) -> 548.4081182
O8: Target | Q8: =E11 -> 0.8 | BE8: Std Dev | BF8: =STDEV(BF12:BF112) -> 26.45711068 | BH8: =STDEV(BH12:BH112) -> 9.631255792 | BJ8: =STDEV(BJ12:BJ112) -> 59.29120938
AQ9: Target Correl | AS9: =E11 -> 0.8 | BE9: Std Dev/Avg | BF9: =BF8/BF7 -> 0.1966431821 | BH9: =BH8/BH7 -> 0.2595301415 | BJ9: =BJ8/BJ7 -> 0.1081151198
AF10: Correlation | AH10: =CORREL(AE13:AE17,AF13:AF17) -> 0.9936047727 | AK10: Correl | AM10: =CORREL(AL13:AL20,AM13:AM20) -> 0.8996623183 | AQ10: Stdev | AR10: 2.3 | AS10: 24 | AU10: =AR10 -> 2.3 | AV10: =AS10 -> 24 | BB10: 0.8210875172 | BC10: 0.8849218053 | BF10: Gas CC Plant | BH10: Gas Peak Plant | BJ10: Nuclear Plant
C11: Correlation | D11: 80 | E11: =D11/100 -> 0.8 | F11: Cholesky Factor | H11: 0.8 | AQ11: Correl | AS11: =CORREL(AR13:AR2943,AS13:AS2943) -> 0.6946566157 | AV11: =CORREL(AU13:AU2943,AV13:AV2943) -> 0.9430326508 | BB11: 0.9864546142 | BC11: 0.8805439018 | BN11: Freq
L12: Date | N12: Gas Random | O12: Elec Random | P12: HR Random | Q12: Gas Price | R12: Electricity Price | S12: Elec Mean Price | T12: Mkt Heat Rate | U12: Chg | W12: Heat Rate | X12: Gas Price | Y12: Elec Price | AB12: Plant Value | AE12: Gas | AF12: Elec | AG12: % Chg Gas | AH12: % Chg Elec | AJ12: Value | AK12: HR | AL12: Gas | AM12: Electrcity | AN12: HR Chg | AR12: Gas | AS12: Elec | AT12: HR | AU12: Gas Adj | AV12: Elec Adj | AW12: Elec HR Pr | BB12: 0.834504356 | BC12: 0.8627095419 | BF12: 166.9386592 | BH12: 47.14507207 | BJ12: 706.3907105 | BM12: 18 | BN12: =FREQUENCY(BH12:BH112,BM12:BM36) -> 0
C13: Plant Value | E13: Heat Rate | F13: Var Cost | G13: Outage | H13: Cost/kW | L13: 2012-01-01 | M13: =YEAR(L13) -> 2012 | N13: =NORMSINV(RAND()) -> 0.8583202681 | O13: =N13*$E$11+NORMSINV(RAND())*$H$11 -> 0.1146541333 | P13: =NORMSINV(RAND()) -> 0.3601211638 | Q13: =D4 -> 8.4 | R13: =D6 -> 66.36 | T13: =R13/Q13 -> 7.9 | W13: =D5 -> 7.9 | X13: =Q13 -> 8.4 | Y13: =W13*X13 -> 66.36 | AA13: =R13/Q13 -> 7.9 | AB13: =MAX((R13-Q13*$AB$2-$AB$3)*(1-$AB$4),0) -> 5.2264 | AD13: 2012 | AE13: =AVERAGEIF(M:M,AD13,Q:Q) -> 8.105578472 | AF13: =AVERAGEIF(M:M,AD13,R:R) -> 72.87435908 | AI13: =AD13 -> 2012 | AJ13: =SUMIF(M:M,AD13,AB:AB)*24/1000 -> 140.3424482 | AK13: =AVERAGEIF(M:M,AI13,W:W) -> 8.987622389 | AL13: =AVERAGEIF(M:M,AD13,X:X) -> 8.105578472 | AM13: =AVERAGEIF(M:M,AD13,Y:Y) -> 79.83196991 | AQ13: =L13 -> 2012-01-01 | AR13: =Q13 -> 8.4 | AS13: =D6 -> 66.36 | AT13: =AS13/AR13 -> 7.9 | AU13: =AR13 -> 8.4 | AV13: =AS13 -> 66.36 | AW13: =$AT$13*AU13 -> 66.36 | AX13: =AV13/AU13 -> 7.9 | BB13: 0.952907616 | BC13: 0.8599085357 | BF13: 149.7468067 | BH13: 53.5531378 | BJ13: 536.1567671 | BM13: =BM12+2 -> 20 | BN13: 1
C14: Gas Peak Plant | E14: 9.4 | F14: 8 | G14: =24/365 -> 0.06575342466 | L14: =L13+1 -> 2012-01-02 | M14: =YEAR(L14) -> 2012 | N14: =NORMSINV(RAND()) -> -0.4333066732 | O14: =N14*$E$11+NORMSINV(RAND())*$H$11 -> 1.928179461 | P14: =NORMSINV(RAND()) -> -1.625026771 | Q14: =Q13+Q13*N14*$E$4+$G$4*($Q$13-Q13) -> 8.221650973 | R14: =R13+O14*$E$6*R13+$G$6*(S14-R13)+(RAND()<$H$6)*$I$6*$R$13 -> 83.26420539 | S14: =$Q$13*Q14 -> 69.06186818 | T14: =R14/Q14 -> 10.1274313 | U14: =LN(T14/T13) -> 0.2483849529 | W14: =W13+P14*W13*$E$5+$G$5*($W$13-W13)+$I$6*(RAND()<$H$6)*W13 -> 6.359474621 | X14: =Q14 -> 8.221650973 | Y14: =W14*X14 -> 52.28538071 | AA14: =R14/Q14 -> 10.1274313 | AB14: =MAX((R14-Q14*$AB$2-$AB$3)*(1-$AB$4),0) -> 22.28988966 | AD14: =AD13+1 -> 2013 | AE14: 8.297494335 | AF14: 75.60691474 | AG14: =LN(AE14/AE13) -> 0.02340105696 | AH14: =LN(AF14/AF13) -> 0.03681089388 | AI14: =AD14 -> 2013 | AJ14: 147.5618644 | AK14: 6.018703342 | AL14: 8.297494335 | AM14: 50.81704936 | AN14: =LN(AK14/AK13) -> -0.4009764962 | AQ14: =L14 -> 2012-01-02 | AR14: =AR13+$AR$10*N14 -> 7.403394652 | AS14: =AS13+$AS$10*O14 -> 112.6363071 | AT14: =AS14/AR14 -> 15.21414329 | AU14: =MAX(AU13+$AU$10*N14+$G$4*($AU$13-AU13),$AU$6) -> 7.403394652 | AV14: =MAX(AV13+$AV$10*O14+$G$6*($AT$13*AU14-AV13),$AV$6) -> 111.8489888 | AW14: =$AT$13*AU14 -> 58.48681775 | AX14: =AV14/AU14 -> 15.10779772 | BB14: 0.5807489533 | BC14: 0.8860084475 | BF14: 154.3059713 | BH14: 31.84718878 | BJ14: 553.373943 | BM14: =BM13+2 -> 22 | BN14: 2
C15: Gas CC Plant | E15: 7 | F15: 2 | G15: 0.06 | L15: =L14+1 -> 2012-01-03 | M15: 2012 | N15: -0.699125785 | O15: 0.5334614328 | P15: -0.8584596598 | Q15: 7.942229895 | R15: =R14+O15*$E$6*R14+$G$6*(S15-R14)+(RAND()<$H$6)*$I$6*$R$13 -> 87.38362946 | S15: =$Q$13*Q15 -> 66.71473112 | T15: 11.00240494 | U15: =LN(T15/T14) -> 0.08286616781 | W15: 5.727460212 | X15: 7.942229895 | Y15: 45.48880571 | AA15: 11.00240494 | AB15: 28.00073899 | AD15: 2014 | AE15: 8.730911969 | AF15: 80.96434598 | AG15: =LN(AE15/AE14) -> 0.0509162464 | AH15: 0.06846114097 | AI15: 2014 | AJ15: 171.9292534 | AK15: 12.28781479 | AL15: 8.730911969 | AM15: 98.11944814 | AN15: =LN(AK15/AK14) -> 0.7137362593 | AQ15: 2012-01-03 | AR15: =AR14+$AR$10*N15 -> 5.795405346 | AS15: 125.4393814 | AT15: 21.64462604 | AU15: =MAX(AU14+$AU$10*N15+$G$4*($AU$13-AU14),$AU$6) -> 5.807862913 | AV15: =MAX(AV14+$AV$10*O15+$G$6*($AT$13*AU15-AV14),$AV$6) -> 118.055376 | AW15: =$AT$13*AU15 -> 45.88211701 | AX15: 20.32681863 | BB15: 0.646344123 | BC15: 0.8668991814 | BF15: 108.6021915 | BH15: 41.24763296 | BJ15: 546.2844294 | BM15: 24 | BN15: 3
C16: Coal Plant | F16: 40 | G16: 0.12 | H16: 2500 | I16: =H16*10% -> 250 | L16: 2012-01-04 | M16: 2012 | N16: -0.05878884535 | O16: 0.1191746126 | P16: -0.2488111343 | Q16: 7.925073209 | R16: 86.65613633 | S16: 66.57061496 | T16: 10.93442723 | U16: -0.006197606537 | W16: 5.589041604 | X16: 7.925073209 | Y16: 44.29356388 | AA16: 10.93442723 | AB16: 27.42978644 | AD16: 2015 | AE16: 7.815049995 | AF16: 67.05554523 | AG16: -0.110818467 | AH16: -0.1884875756 | AI16: 2015 | AJ16: 111.5068872 | AK16: 8.774308356 | AL16: 7.815049995 | AM16: 70.35340821 | AN16: -0.3367801572 | AQ16: 2012-01-04 | AR16: 5.660191002 | AS16: 128.2995721 | AT16: 22.66700401 | AU16: 5.705050282 | AV16: 113.6170189 | AW16: 45.06989723 | AX16: 19.9151652 | BB16: 0.93406502 | BC16: 0.8818158329 | BF16: 116.5563897 | BH16: 27.30670827 | BJ16: 590.0315147 | BM16: 26 | BN16: 6
C17: Nuclear Plant | F17: 5 | G17: 0.09 | L17: 2012-01-05 | M17: 2012 | N17: -1.660247153 | O17: -1.216079282 | P17: -0.08124455197 | Q17: 7.286288363 | R17: 70.41150976 | S17: 61.20482225 | T17: 9.66356343 | U17: -0.1235538083 | W17: 5.569216478 | X17: 7.286288363 | Y17: 40.57891721 | AA17: 9.66356343 | AB17: 16.36304175 | AD17: 2016 | AE17: 7.678418675 | AF17: 64.85269017 | AG17: =LN(AE17/AE16) -> -0.01763773702 | AH17: =LN(AF17/AF16) -> -0.03340291627 | AI17: 2016 | AJ17: 96.96793418 | AK17: 6.335470635 | AL17: 7.678418675 | AM17: 47.2265772 | AN17: -0.3256638441 | AQ17: 2012-01-05 | AR17: 1.84162255 | AS17: 99.11366939 | AT17: 53.81866627 | AU17: 1.920168702 | AV17: 74.58634749 | AW17: 15.16933274 | AX17: 38.84364297 | BB17: 0.9683201114 | BC17: 0.8810618905 | BF17: 104.400815 | BH17: 44.32538574 | BJ17: 474.4865642 | BM17: 28 | BN17: 10
C18: Wind Farm - On Shore | F18: 0 | G18: 0.75 | L18: 2012-01-06 | M18: 2012 | N18: -0.824146957 | O18: -0.9070765685 | P18: 0.2975814277 | Q18: 7.005966112 | R18: 60.95244834 | S18: 58.85011534 | T18: 8.700077529 | U18: -0.1050305283 | W18: 5.803053678 | X18: 7.005966112 | Y18: 40.65599741 | AA18: 8.700077529 | AB18: 9.316044422 | AD18: 2017 | AE18: 9.362060125 | AF18: 93.03690203 | AG18: 0.1982517409 | AH18: 0.3608778176 | AI18: 2017 | AJ18: 230.8689821 | AK18: 15.27890306 | AL18: 9.362060125 | AM18: 139.8853522 | AN18: 0.8803088896 | AQ18: 2012-01-06 | AR18: -0.05391545153 | AS18: 77.34383174 | AT18: -1434.539256 | AU18: 0.1056285916 | AV18: 45.44132168 | AW18: 0.8344658738 | AX18: 430.1990681 | BB18: 0.2143231614 | BC18: 0.8785885236 | BF18: 112.5926087 | BH18: 45.43087075 | BJ18: 600.4891804 | BM18: 30 | BN18: 9
C19: Wind Farm - Off Shore | F19: 0 | G19: 0.6 | L19: 2012-01-07 | M19: 2012 | N19: -1.893822661 | O19: -1.928643856 | P19: 0.3975647404 | Q19: 6.373256723 | R19: 44.9285157 | S19: 53.53535647 | T19: 7.049538039 | U19: -0.2103698488 | W19: 6.111358616 | X19: 6.373256723 | Y19: 38.94925739 | AA19: 7.049538039 | AB19: 0 | AD19: 2018 | AE19: 8.10324606 | AF19: 61.25723561 | AG19: -0.1444006355 | AH19: -0.4179142357 | AI19: 2018 | AJ19: 59.42518787 | AK19: 9.163691009 | AL19: 8.10324606 | AM19: 77.77178053 | AN19: -0.5112239458 | AQ19: 2012-01-07 | AR19: -4.409707573 | AS19: 31.05637919 | AT19: -7.042729859 | AU19: -4.146483887 | AV19: -8.665985305 | AW19: -32.75722271 | AX19: 2.089959961 | BB19: 0.985923369 | BC19: 0.8800888651 | BF19: 113.5992792 | BH19: 36.23084722 | BJ19: 536.6196407 | BM19: 32 | BN19: 5
L20: 2012-01-08 | M20: 2012 | N20: -1.328228447 | O20: -0.9568704705 | P20: -0.457634573 | Q20: 5.983799111 | R20: 39.87325529 | S20: 50.26391253 | T20: 6.66353508 | U20: -0.05631195171 | W20: 5.802575958 | X20: 5.983799111 | Y20: 34.72144886 | AA20: 6.66353508 | AB20: 0 | AD20: 2019 | AE20: 7.613514965 | AF20: 65.23037535 | AG20: -0.06233977673 | AH20: 0.0628432652 | AI20: 2019 | AJ20: 105.6674852 | AK20: 6.784583408 | AL20: 7.613514965 | AM20: 51.67249933 | AN20: -0.3005961536 | AQ20: 2012-01-08 | AR20: -7.464633 | AS20: 8.091487903 | AT20: -1.083976654 | AU20: -7.044578266 | AV20: -36.3294949 | AW20: -55.6521683 | AX20: 5.15708585 | BB20: 0.6790411178 | BC20: 0.8715749895 | BF20: 141.9511337 | BH20: 29.30179368 | BJ20: 467.6458919 | BM20: 34 | BN20: 7
C21: =INDEX(C14:C19,$D$24) -> Gas CC Plant | E21: =INDEX(E14:E19,$D$24) -> 7 | F21: =INDEX(F14:F19,$D$24) -> 2 | G21: =INDEX(G14:G19,$D$24) -> 0.06 | L21: 2012-01-09 | M21: 2012 | N21: -0.8054110086 | O21: 0.405209042 | P21: -0.01975473061 | Q21: 5.777850156 | R21: 42.83973436 | S21: 48.53394131 | T21: 7.414476527 | U21: 0.10678424 | W21: 5.820281919 | X21: 5.777850156 | Y21: 33.6287168 | AA21: 7.414476527 | AB21: 0.3710962676 | AQ21: 2012-01-09 | AR21: -9.31707832 | AS21: 17.81650491 | AT21: -1.912241617 | AU21: -8.703966357 | AV21: -29.84766182 | AW21: -68.76133422 | AX21: 3.429202342 | BF21: 98.07830377 | BH21: 21.72965748 | BJ21: 486.1332974 | BM21: 36 | BN21: 3
L22: 2012-01-10 | M22: 2012 | N22: -0.4564708774 | O22: -0.6111955932 | P22: -2.349352471 | Q22: 5.681393433 | R22: 39.92428201 | S22: 47.72370484 | T22: 7.027198958 | U22: -0.05364619134 | W22: 4.210610446 | X22: 5.681393433 | Y22: 23.92213453 | AA22: 7.027198958 | AB22: 0 | AQ22: 2012-01-10 | AR22: -10.36696134 | AS22: 3.147810674 | AT22: -0.303638701 | AU22: -9.540049795 | AV22: -49.06822921 | AW22: -75.36639338 | AX22: 5.143393406 | BF22: 107.276652 | BH22: 33.28332244 | BJ22: 513.653138 | BM22: 38 | BN22: 10
L23: 2012-01-11 | M23: 2012 | N23: 2.009512428 | O23: 1.448187433 | P23: -2.045164942 | Q23: 6.27480072 | R23: 48.71900607 | S23: 52.70832605 | T23: 7.764231605 | U23: 0.09973931035 | W23: 3.232584145 | X23: 6.27480072 | Y23: 20.28382132 | AA23: 7.764231605 | AB23: 2.627676966 | AQ23: 2012-01-11 | AR23: -5.745082754 | AS23: 37.90430905 | AT23: -6.597695921 | AU23: -4.69392059 | AV23: -13.11310518 | AW23: -37.08197266 | AX23: 2.793635923 | BF23: 231.2918414 | BH23: 44.09284482 | BJ23: 560.1817744 | BM23: 40 | BN23: 4
C24: Plant Scenario Number | D24: 2 | L24: 2012-01-12 | M24: 2012 | N24: -1.402400915 | O24: -0.5405650768 | P24: 0.9424686083 | Q24: 5.870176184 | R24: 45.35440033 | S24: 49.30947994 | T24: 7.726241754 | U24: -0.004904940884 | W24: 3.668188472 | X24: 5.870176184 | Y24: 21.53291261 | AA24: 7.726241754 | AB24: 2.127377023 | AQ24: 2012-01-12 | AR24: -8.970604858 | AS24: 24.93074721 | AT24: -2.779160113 | AU24: -7.755768686 | AV24: -30.90241377 | AW24: -61.27057262 | AX24: 3.984442422 | BF24: 128.2621868 | BH24: 47.35534445 | BJ24: 547.0346972 | BM24: 42 | BN24: 10
L25: 2012-01-13 | M25: 2012 | N25: -0.7146864694 | O25: 1.321686894 | P25: 0.219447828 | Q25: 5.696227542 | R25: 53.39655258 | S25: 47.84831136 | T25: 9.374020293 | U25: 0.1933195097 | W25: 3.828262764 | X25: 5.696227542 | Y25: 21.8066558 | AA25: 9.374020293 | AB25: 10.83158219 | AQ25: 2012-01-13 | AR25: -10.61438374 | AS25: 56.65123266 | AT25: -5.337213545 | AU25: -9.197600457 | AV25: -3.357791304 | AW25: -72.66104361 | AX25: 0.3650725338 | BF25: 194.8379333 | BH25: 43.85698862 | BJ25: 552.5966687 | BM25: 44 | BN25: 8
L26: 2012-01-14 | M26: 2012 | N26: 0.3734798837 | O26: -0.2194282903 | P26: -0.1767176224 | Q26: 5.834268592 | R26: 84.61451008 | S26: 49.00785617 | T26: 14.50301932 | U26: 0.4364147922 | W26: 3.808156243 | X26: 5.834268592 | Y26: 22.21780636 | AA26: 14.50301932 | AB26: 39.26815215 | AQ26: 2012-01-14 | AR26: -9.755380005 | AS26: 51.38495369 | AT26: -5.267345164 | AU26: -8.118626719 | AV26: -14.70200625 | AW26: -64.13715108 | AX26: 1.810898168 | BF26: 127.028111 | BH26: 40.50848383 | BJ26: 539.498056 | BM26: 46 | BN26: 6
L27: 2012-01-15 | M27: 2012 | N27: -0.2453630778 | O27: 1.450075653 | P27: -0.981193694 | Q27: 5.796196043 | R27: 96.97253108 | S27: 48.68804676 | T27: 16.7303746 | U27: 0.1428690493 | W27: 3.421149233 | X27: 5.796196043 | Y27: 19.82965165 | AA27: 16.7303746 | AB27: 51.13520925 | AQ27: 2012-01-15 | AR27: -10.31971508 | AS27: 86.18676936 | AT27: -8.351661714 | AU27: -8.476478964 | AV27: 14.87359167 | AW27: -66.96418381 | AX27: -1.754689858 | BF27: 117.2893255 | BH27: 51.14803284 | BJ27: 485.8961541 | BM27: 48 | BN27: 3
L28: 2012-01-16 | M28: 2012 | N28: 0.9200577323 | O28: -0.3075834975 | P28: -0.4473633857 | Q28: 6.090052507 | R28: 88.51339254 | S28: 51.15644106 | T28: 14.5340935 | U28: -0.1407287407 | W28: 3.304672366 | X28: 6.090052507 | Y28: 20.12562823 | AA28: 14.5340935 | AB28: 41.25004349 | AQ28: 2012-01-16 | AR28: -8.2035823 | AS28: 78.80476542 | AT28: -9.606140652 | AU28: -6.149390192 | AV28: 1.146210309 | AW28: -48.58018252 | AX28: -0.186394142 | BF28: 123.3790671 | BH28: 34.29651156 | BJ28: 555.6028373 | BM28: 50 | BN28: 3
L29: 2012-01-17 | M29: 2012 | N29: -0.243331613 | O29: 0.8070359269 | P29: -0.9328594442 | Q29: 6.046313638 | R29: 94.02731016 | S29: 50.78903456 | T29: 15.55117974 | U29: 0.06763933816 | W29: 3.003666901 | X29: 6.046313638 | Y29: 18.16111215 | AA29: 15.55117974 | AB29: 46.72092781 | AQ29: 2012-01-17 | AR29: -8.763245009 | AS29: 98.17362767 | AT29: -11.20288518 | AU29: -6.527185525 | AV29: 15.24397496 | AW29: -51.56476565 | AX29: -2.33545912 | BF29: 126.62426 | BH29: 32.06603276 | BJ29: 559.5286742 | BM29: 52 | BN29: 2
L30: 2012-01-18 | M30: 2012 | N30: -2.112542582 | O30: -1.811901088 | P30: -0.1691299452 | Q30: 5.449853062 | R30: 67.05459159 | S30: 45.77876572 | T30: 12.30392651 | U30: -0.234218063 | W30: 3.016150695 | X30: 5.449853062 | Y30: 16.4375781 | AA30: 12.30392651 | AB30: 25.29128295 | AQ30: 2012-01-18 | AR30: -13.62209295 | AS30: 54.68800155 | AT30: -4.014654853 | AU30: -11.19944364 | AV30: -38.61360913 | AW30: -88.47560479 | AX30: 3.447814941 | BF30: 164.1712794 | BH30: 25.18314047 | BJ30: 584.427717 | BM30: 54 | BN30: 5
L31: 2012-01-19 | M31: 2012 | N31: -1.324572534 | O31: -2.930966582 | P31: 0.6034398714 | Q31: 5.13301234 | R31: 39.11134307 | S31: 43.11730366 | T31: 7.619569267 | U31: -0.4791985988 | W31: 3.307816306 | X31: 5.13301234 | Y31: 16.97906191 | AA31: 7.619569267 | AB31: 1.109441291 | AQ31: 2012-01-19 | AR31: -16.66860978 | AS31: -15.6551964 | AT31: 0.9392022859 | AU31: -14.00096743 | AV31: -116.1562104 | AW31: -110.6076427 | AX31: 8.296298885 | BF31: 151.2568231 | BH31: 44.08711174 | BJ31: 591.720194 | BM31: 56 | BN31: 0
L32: 2012-01-20 | M32: 2012 | N32: 2.225649148 | O32: 1.785772876 | P32: 0.8828324037 | Q32: 5.733639628 | R32: 49.09618288 | S32: 48.16257288 | T32: 8.562830255 | U32: 0.1167109314 | W32: 3.727128751 | X32: 5.733639628 | Y32: 21.37001311 | AA32: 8.562830255 | AB32: 6.543063156 | AQ32: 2012-01-20 | AR32: -11.54961673 | AS32: 27.20335263 | AT32: -2.355346784 | AU32: -8.601962292 | AV32: -68.47759058 | AW32: -67.95550211 | AX32: 7.960694113 | BF32: 136.0333265 | BH32: 29.07009597 | BJ32: 465.3679471 | BM32: 58 | BN32: 3
L33: 2012-01-21 | M33: 2012 | N33: -0.6721253528 | O33: -0.2266804673 | P33: 0.5892769762 | Q33: 5.57813663 | R33: 47.42541043 | S33: 46.85634769 | T33: 8.502016636 | U33: -0.007127386113 | W33: 4.053279159 | X33: 5.57813663 | Y33: 22.60974495 | AA33: 8.502016636 | AB33: 5.995746777 | AQ33: 2012-01-21 | AR33: -13.09550505 | AS33: 21.76302141 | AT33: -1.661869576 | AU33: -9.935326075 | AV33: -74.91907033 | AW33: -78.48907599 | AX33: 7.540675542 | BF33: 97.69607894 | BH33: 32.85487816 | BJ33: 638.0781343 | BM33: 60 | BN33: 0
L34: 2012-01-22 | M34: 2012 | N34: -1.388873821 | O34: -0.7565935774 | P34: -0.9897166398 | Q34: 5.233790853 | R34: 42.41462478 | S34: 43.96384317 | T34: 8.103996887 | U34: -0.04794600394 | W34: 5.656227812 | X34: 5.233790853 | Y34: 29.60351339 | AA34: 8.103996887 | AB34: 3.551403478 | AQ34: 2012-01-22 | AR34: -16.28991483 | AS34: 3.604775555 | AT34: -0.2212887908 | AU34: -12.90054429 | AV34: -95.77683914 | AW34: -101.9142999 | AX34: 7.424247925 | BF34: 133.3432003 | BH34: 26.59808834 | BJ34: 532.9703499 | BM34: 62 | BN34: 0
L35: 2012-01-23 | M35: 2012 | N35: -0.3730046509 | O35: 0.3485367176 | P35: -2.077664107 | Q35: 5.177709279 | R35: 44.44423513 | S35: 43.49275795 | T35: 8.583764119 | U35: 0.057515143 | W35: 4.279675414 | X35: 5.177709279 | Y35: 22.1589151 | AA35: 8.583764119 | AB35: 5.828253963 | AQ35: 2012-01-23 | AR35: -17.14782553 | AS35: 11.96965678 | AT35: -0.6980276745 | AU35: -13.49219818 | AV35: -88.49311057 | AW35: -106.5883656 | AX35: 6.558835661 | BF35: 135.0558817 | BH35: 28.64314144 | BJ35: 543.1296383 | BM35: 64 | BN35: 0
L36: 2012-01-24 | M36: 2012 | N36: -0.3472472573 | O36: -1.041877434 | P36: 0.1474723282 | Q36: 5.129888591 | R36: 38.2892101 | S36: 43.09106417 | T36: 7.46394574 | U36: -0.1397883318 | W36: 4.409716326 | X36: 5.129888591 | Y36: 22.62135347 | AA36: 7.46394574 | AB36: 0.3571905601 | AQ36: 2012-01-24 | AR36: -17.94649422 | AS36: -13.03540164 | AT36: 0.7263480811 | AU36: -14.01721439 | AV36: -115.7224573 | AW36: -110.7359937 | AX36: 8.255738555 | BF36: 154.3264768 | BH36: 30.90123913 | BJ36: 531.6920163 | BM36: 66 | BN36: 1
L37: 2012-01-25 | M37: 2012 | N37: -0.4550844847 | O37: -0.2019966101 | P37: 0.4882714544 | Q37: 5.056372881 | R37: 37.70218452 | S37: 42.4735322 | T37: 7.456369498 | U37: -0.00101556061 | W37: 4.720447214 | X37: 5.056372881 | Y37: 23.86834128 | AA37: 7.456369498 | AB37: 0.2891198934 | AQ37: 2012-01-25 | AR37: -18.99318854 | AS37: -17.88332028 | AT37: 0.9415649325 | AU37: -14.78369353 | AV37: -120.6772481 | AW37: -116.7911789 | AX37: 8.162861863 | BF37: 107.3582679 | BH37: 38.91543644 | BJ37: 551.5310364
L38: 2012-01-26 | M38: 2012 | N38: -0.2969000378 | O38: 0.9301799635 | P38: 0.7617868345 | Q38: 5.024607593 | R38: 42.71171261 | S38: 42.20670378 | T38: 8.500507119 | U38: 0.1310571894 | W38: 5.199657451 | X38: 5.024607593 | Y38: 26.12623831 | AA38: 8.500507119 | AB38: 5.207091895 | AQ38: 2012-01-26 | AR38: -19.67605862 | AS38: 4.440998842 | AT38: -0.2257057131 | AU38: -15.17676745 | AV38: -98.27485045 | AW38: -119.8964628 | AX38: 6.475347981 | BF38: 251.7377328 | BH38: 26.79676768 | BJ38: 559.3333131
L39: 2012-01-27 | M39: 2012 | N39: 0.7955536833 | O39: -0.6722163218 | P39: 0.2349093513 | Q39: 5.262669907 | R39: 39.12868773 | S39: 44.20642721 | T39: 7.435140037 | U39: -0.1339084081 | W39: 5.386736368 | X39: 5.262669907 | Y39: 28.34861538 | AA39: 7.435140037 | AB39: 0.2725984773 | AQ39: 2012-01-27 | AR39: -17.84628515 | AS39: -11.69219288 | AT39: 0.65516116 | AU39: -13.05228438 | AV39: -114.8918618 | AW39: -103.1130466 | AX39: 8.802433231 | BF39: 114.5152202 | BH39: 23.03401229 | BJ39: 586.8635015
L40: 2012-01-28 | M40: 2012 | N40: -0.5733653105 | O40: 0.1201993519 | P40: 0.4487526391 | Q40: 5.154032347 | R40: 40.1566277 | S40: 43.29387171 | T40: 7.791303003 | U40: 0.04679069741 | W40: 5.714512782 | X40: 5.154032347 | Y40: 29.45278372 | AA40: 7.791303003 | AB40: 1.953697198 | AQ40: 2012-01-28 | AR40: -19.16502537 | AS40: -8.807408436 | AT40: 0.4595563151 | AU40: -14.10287104 | AV40: -111.6591593 | AW40: -111.4126812 | AX40: 7.917477155 | BF40: 135.5263784 | BH40: 40.49133899 | BJ40: 611.8042433
L41: 2012-01-29 | M41: 2012 | N41: -0.3808155627 | O41: -0.8378495172 | P41: 1.029096582 | Q41: 5.098432892 | R41: 36.04977111 | S41: 42.82683629 | T41: 7.070755246 | U41: -0.09704081383 | W41: 6.452989359 | X41: 5.098432892 | Y41: 32.9001332 | AA41: 7.070755246 | AB41: 0 | AQ41: 2012-01-29 | AR41: -20.04090116 | AS41: -28.91579685 | AT41: 1.442839153 | AU41: -14.69746095 | AV41: -132.2126259 | AW41: -116.1099415 | AX41: 8.995609948 | BF41: 117.0832634 | BH41: 28.64008444 | BJ41: 530.1893622
L42: 2012-01-30 | M42: 2012 | N42: -1.41875531 | O42: 0.1564917106 | P42: 0.03020414919 | Q42: 4.785264472 | R42: 37.1978099 | S42: 40.19622157 | T42: 7.773407326 | U42: 0.09474129329 | W42: 6.498083365 | X42: 4.785264472 | Y42: 31.09504746 | AA42: 7.773407326 | AB42: 1.598901082 | AQ42: 2012-01-30 | AR42: -23.30403837 | AS42: -25.15999579 | AT42: 1.079641021 | AU42: -17.6718799 | AV42: -129.1963474 | AW42: -139.6078512 | AX42: 7.310843449 | BF42: 103.854127 | BH42: 39.21675714 | BJ42: 575.4322589
L43: 2012-01-31 | M43: 2012 | N43: 0.06113169173 | O43: -0.7030635516 | P43: 0.07151985718 | Q43: 4.844782701 | R43: 34.14783122 | S43: 40.69617469 | T43: 7.0483721 | U43: -0.09791190916 | W43: 6.574881153 | X43: 4.844782701 | Y43: 31.85387047 | AA43: 7.0483721 | AB43: 0 | AQ43: 2012-01-31 | AR43: -23.16343548 | AS43: -42.03352103 | AT43: 1.814649691 | AU43: -17.20537851 | AV43: -146.7424869 | AW43: -135.9224902 | AX43: 8.528872924 | BF43: 119.4462736 | BH43: 27.94946203 | BJ43: 530.7111692
L44: 2012-02-01 | M44: 2012 | N44: -1.542642487 | O44: -0.646696219 | P44: 2.025772318 | Q44: 4.523008303 | R44: 31.66154954 | S44: 37.99326975 | T44: 7.000108648 | U44: -0.00687101223 | W44: 8.193063404 | X44: 4.523008303 | Y44: 37.0572938 | AA44: 7.000108648 | AB44: 0 | AQ44: 2012-02-01 | AR44: -26.7115132 | AS44: -57.55423029 | AT44: 2.154660047 | AU44: -20.433389 | AV44: -163.7313248 | AW44: -161.4237731 | AX44: 8.012930444 | BF44: 181.266197 | BH44: 34.09413337 | BJ44: 600.5692457
L45: 2012-02-02 | M45: 2012 | N45: 1.70438765 | O45: 2.386561736 | P45: 0.5529432705 | Q45: 4.949209714 | R45: 42.47582228 | S45: 41.5733616 | T45: 8.582344402 | U45: 0.2037814464 | W45: 12.82883507 | X45: 4.949209714 | Y45: 63.49259514 | AA45: 8.582344402 | AB45: 5.481473027 | AQ45: 2012-02-02 | AR45: -22.79142161 | AS45: -0.2767486308 | AT45: 0.01214266646 | AU45: -16.15288004 | AV45: -102.8414859 | AW45: -127.6077523 | AX45: 6.366758474 | BF45: 142.4244589 | BH45: 44.2110873 | BJ45: 538.048206
L46: 2012-02-03 | M46: 2012 | N46: 0.5186131544 | O46: 0.2886190267 | P46: -0.06591383882 | Q46: 5.118114131 | R46: 44.12116889 | S46: 42.9921587 | T46: 8.620591054 | U46: 0.004446533613 | W46: 12.65343081 | X46: 5.118114131 | Y46: 64.76170303 | AA46: 8.620591054 | AB46: 5.916707776 | AQ46: 2012-02-03 | AR46: -21.59861135 | AS46: 6.650108009 | AT46: -0.3078951651 | AU46: -14.65315879 | AV46: -97.2064761 | AW46: -115.7599544 | AX46: 6.633823977 | BF46: 159.5331982 | BH46: 46.66628787 | BJ46: 507.4527092
L47: 2012-02-04 | M47: 2012 | N47: -0.1045359798 | O47: 0.2139295483 | P47: 0.133502873 | Q47: 5.132921377 | R47: 45.24775278 | S47: 43.11653957 | T47: 8.815204726 | U47: 0.02232439018 | W47: 12.78484167 | X47: 5.132921377 | Y47: 65.62358712 | AA47: 8.815204726 | AB47: 6.878264952 | AQ47: 2012-02-04 | AR47: -21.83904411 | AS47: 11.78441717 | AT47: -0.539603158 | AU47: -14.60542705 | AV47: -93.8898067 | AW47: -115.3828737 | AX47: 6.428419131 | BF47: 100.7826767 | BH47: 28.39549241 | BJ47: 492.1733554
L48: 2012-02-05 | M48: 2012 | N48: 0.2986413323 | O48: -0.2116155912 | P48: -0.07613934409 | Q48: 5.248872082 | R48: 43.88726316 | S48: 44.09052549 | T48: 8.361275046 | U48: -0.05286710728 | W48: 12.59475751 | X48: 5.248872082 | Y48: 66.10827108 | AA48: 8.361275046 | AB48: 4.836449071 | AQ48: 2012-02-05 | AR48: -21.15216904 | AS48: 6.705642978 | AT48: -0.3170191655 | AU48: -13.63098415 | AV48: -100.3480777 | AW48: -107.6847748 | AX48: 7.361763214 | BF48: 116.7900832 | BH48: 50.90750616 | BJ48: 473.4749156
L49: 2012-02-06 | M49: 2012 | N49: -0.4291014007 | O49: -0.2007449339 | P49: 0.850490966 | Q49: 5.177898561 | R49: 42.70265269 | S49: 43.49434791 | T49: 8.247101056 | U49: -0.01374918159 | W49: 13.80974345 | X49: 5.177898561 | Y49: 71.50545072 | AA49: 8.247101056 | AB49: 4.189920995 | AQ49: 2012-02-06 | AR49: -22.13910226 | AS49: 1.887764564 | AT49: -0.08526834292 | AU49: -14.34253007 | AV49: -106.4617471 | AW49: -113.3059876 | AX49: 7.422801038 | BF49: 138.2713 | BH49: 30.01136011 | BJ49: 606.3062738
L50: 2012-02-07 | M50: 2012 | N50: -0.2866503135 | O50: -0.2096535019 | P50: -0.3845371479 | Q50: 5.145446763 | R50: 41.59070381 | S50: 43.22175281 | T50: 8.0830112 | U50: -0.02009727506 | W50: 13.08385417 | X50: 5.145446763 | Y50: 67.32227509 | AA50: 8.0830112 | AB50: 3.358221883 | AQ50: 2012-02-07 | AR50: -22.79839799 | AS50: -3.143919482 | AT50: 0.1379008948 | AU50: -14.71754417 | AV50: -112.4741163 | AW50: -116.2685989 | AX50: 7.642179636 | BF50: 165.2685343 | BH50: 35.21070705 | BJ50: 479.9668611
L51: 2012-02-08 | M51: 2012 | N51: -2.519538065 | O51: -1.625895461 | P51: -1.019476792 | Q51: 4.550885378 | R51: 32.4634994 | S51: 38.22743718 | T51: 7.133446945 | U51: -0.1249699163 | W51: 11.40545408 | X51: 4.550885378 | Y51: 51.9049142 | AA51: 7.133446945 | AB51: 0 | AQ51: 2012-02-08 | AR51: -28.59333553 | AS51: -42.16541054 | AT51: 1.474658684 | AU51: -20.22351241 | AV51: -156.2247706 | AW51: -159.7657481 | AX51: 7.724907888 | BF51: 136.4494757 | BH51: 40.60898218 | BJ51: 523.0345152
L52: 2012-02-09 | M52: 2012 | N52: -2.204282514 | O52: -1.846694137 | P52: -0.1691550166 | Q52: 4.107458895 | R52: 24.87389491 | S52: 34.50265472 | T52: 6.055786691 | U52: -0.1637802673 | W52: 11.12135749 | X52: 4.107458895 | Y52: 45.68051876 | AA52: 6.055786691 | AB52: 0 | AQ52: 2012-02-09 | AR52: -33.66318532 | AS52: -86.48606982 | AT52: 2.569158831 | AU52: -24.93556829 | AV52: -204.6220517 | AW52: -196.9909895 | AX52: 8.206031214 | BF52: 132.4360128 | BH52: 52.66906467 | BJ52: 509.362045
L53: 2012-02-10 | M53: 2012 | N53: -1.756468633 | O53: -0.4297371959 | P53: -0.5930689574 | Q53: 3.807599146 | R53: 24.19528778 | S53: 31.98383283 | T53: 6.354473476 | U53: 0.04814475655 | W53: 10.2815493 | X53: 3.807599146 | Y53: 39.14801835 | AA53: 6.354473476 | AB53: 0 | AQ53: 2012-02-10 | AR53: -37.70306317 | AS53: -96.79976252 | AT53: 2.567424352 | AU53: -28.55875154 | AV53: -217.034953 | AW53: -225.6141372 | AX53: 7.599595264 | BF53: 153.1654011 | BH53: 40.09474813 | BJ53: 529.0588249
L54: 2012-02-11 | M54: 2012 | N54: -0.5898251363 | O54: -0.817684147 | P54: 0.6999480985 | Q54: 3.75495909 | R54: 22.35799122 | S54: 31.54165636 | T54: 5.954256939 | U54: -0.06505263371 | W54: 11.10941217 | X54: 3.75495909 | Y54: 41.71538822 | AA54: 5.954256939 | AB54: 0 | AQ54: 2012-02-11 | AR54: -39.05966099 | AS54: -116.4241821 | AT54: 2.980675692 | AU54: -29.45336496 | AV54: -238.2240355 | AW54: -232.6815832 | AX54: 8.08817722 | BF54: 166.8140104 | BH54: 23.79227561 | BJ54: 459.5469843
L55: 2012-02-12 | M55: 2012 | N55: -1.892021633 | O55: -0.3277150274 | P55: -0.4877950219 | Q55: 3.464903374 | R55: 22.08019447 | S55: 29.10518834 | T55: 6.372528202 | U55: 0.06788986723 | W55: 10.41097707 | X55: 3.464903374 | Y55: 36.07302959 | AA55: 6.372528202 | AB55: 0 | AQ55: 2012-02-12 | AR55: -43.41131074 | AS55: -124.2893427 | AT55: 2.863063579 | AU55: -33.33184766 | AV55: -248.5989523 | AW55: -263.3215965 | AX55: 7.458300987 | BF55: 124.7672051 | BH55: 19.4870549 | BJ55: 534.3422446
L56: 2012-02-13 | M56: 2012 | N56: 1.069853064 | O56: 1.602430913 | P56: 1.608019474 | Q56: 3.708232019 | R56: 27.58674812 | S56: 31.14914896 | T56: 7.439326337 | U56: 0.1547840157 | W56: 12.38223888 | X56: 3.708232019 | Y56: 45.91621469 | AA56: 7.439326337 | AB56: 0 | AQ56: 2012-02-13 | AR56: -40.9506487 | AS56: -85.8310008 | AT56: 2.095961933 | AU56: -30.34953751 | AV56: -209.2568498 | AW56: -239.7613464 | AX56: 6.894894187 | BF56: 112.3222909 | BH56: 41.05028896 | BJ56: 495.8181814
L57: 2012-02-14 | M57: 2012 | N57: 0.598261846 | O57: 0.004710106281 | P57: -0.04690557365 | Q57: 3.875585311 | R57: 28.10045672 | S57: 32.55491661 | T57: 7.250635571 | U57: -0.02569116865 | W57: 12.24530978 | X57: 3.875585311 | Y57: 47.45774271 | AA57: 7.250635571 | AB57: 0 | AQ57: 2012-02-14 | AR57: -39.57464645 | AS57: -85.71795825 | AT57: 2.165981656 | AU57: -28.48916605 | AV57: -210.7245634 | AW57: -225.0644118 | AX57: 7.396656086 | BF57: 119.2300824 | BH57: 36.4711921 | BJ57: 644.3041816
L58: 2012-02-15 | M58: 2012 | N58: 1.552198389 | O58: 1.517512862 | P58: 0.02786660647 | Q58: 4.226908681 | R58: 34.38457892 | S58: 35.50603292 | T58: 8.134686957 | U58: 0.115048129 | W58: 12.22107836 | X58: 4.226908681 | Y58: 51.65738221 | AA58: 8.134686957 | AB58: 2.628445062 | AQ58: 2012-02-15 | AR58: -36.00459016 | AS58: -49.29764956 | AT58: 1.369204575 | AU58: -24.45799518 | AV58: -172.5536146 | AW58: -193.2181619 | AX58: 7.055100523 | BF58: 145.566317 | BH58: 29.3276611 | BJ58: 573.9546059
L59: 2012-02-16 | M59: 2012 | N59: 0.410166704 | O59: 0.2635015477 | P59: 0.4520304589 | Q59: 4.364025446 | R59: 35.78975307 | S59: 36.65781374 | T59: 8.201087165 | U59: 0.008129467639 | W59: 12.81917814 | X59: 4.364025446 | Y59: 55.94321961 | AA59: 8.201087165 | AB59: 3.047080455 | AQ59: 2012-02-16 | AR59: -35.06120674 | AS59: -42.97361241 | AT59: 1.225674083 | AU59: -23.10388682 | AV59: -167.2262866 | AW59: -182.5207059 | AX59: 7.238015312 | BF59: 157.603037 | BH59: 52.7421441 | BJ59: 549.303603
L60: 2012-02-17 | M60: 2012 | N60: -0.1723460964 | O60: 0.6788272649 | P60: -1.491297823 | Q60: 4.377621113 | R60: 39.04633732 | S60: 36.77201735 | T60: 8.919533308 | U60: 0.08397689883 | W60: 10.45132498 | X60: 4.377621113 | Y60: 45.75194087 | AA60: 8.919533308 | AB60: 6.018810162 | AQ60: 2012-02-17 | AR60: -35.45760276 | AS60: -26.68175806 | AT60: 0.7524975176 | AU60: -23.10648426 | AV60: -152.4659261 | AW60: -182.5412256 | AX60: 6.598404345 | BF60: 124.5039233 | BH60: 43.20971481 | BJ60: 544.7147087
L61: 2012-02-18 | M61: 2012 | N61: 1.296129838 | O61: 1.508893093 | P61: 0.7468786975 | Q61: 4.705925151 | R61: 46.75385805 | S61: 39.52977127 | T61: 9.935104479 | U61: 0.1078307668 | W61: 11.34975974 | X61: 4.705925151 | Y61: 53.41111981 | AA61: 9.935104479 | AB61: 11.10363907 | AQ61: 2012-02-18 | AR61: -32.47650413 | AS61: 9.531676164 | AT61: -0.2934945253 | AU61: -19.73155458 | AV61: -116.5938274 | AW61: -155.8792812 | AX61: 5.90900362 | BF61: 158.0989002 | BH61: 52.32063459 | BJ61: 612.7087282
L62: 2012-02-19 | M62: 2012 | N62: 1.082680608 | O62: 1.711983221 | P62: -0.2845623059 | Q62: 5.001756768 | R62: 56.68538459 | S62: 42.01475685 | T62: 11.333095 | U62: 0.1316528137 | W62: 10.91044769 | X62: 5.001756768 | Y62: 54.57140556 | AA62: 11.333095 | AB62: 18.49270199 | AQ62: 2012-02-19 | AR62: -29.98633873 | AS62: 50.61927348 | AT62: -1.688077825 | AU62: -16.88974475 | AV62: -77.1897457 | AW62: -133.4289835 | AX62: 4.57021387 | BF62: 118.6931572 | BH62: 37.60844559 | BJ62: 427.0325766
L63: 2012-02-20 | M63: 2012 | N63: 0.2978622106 | O63: 1.330416249 | P63: -0.8306307743 | Q63: 5.11723669 | R63: 65.11929533 | S63: 42.9847882 | T63: 12.72548042 | U63: 0.1158791102 | W63: 9.777784538 | X63: 5.11723669 | Y63: 50.03523779 | AA63: 12.72548042 | AB63: 25.66072019 | AQ63: 2012-02-20 | AR63: -29.30125565 | AS63: 82.54926346 | AT63: -2.817260272 | AU63: -15.88853985 | AV63: -50.09272764 | AW63: -125.5194648 | AX63: 3.15275841 | BF63: 143.4876352 | BH63: 43.77573425 | BJ63: 512.3285886
L64: 2012-02-21 | M64: 2012 | N64: -0.2978854737 | O64: 0.4352352059 | P64: -1.059314287 | Q64: 5.083578058 | R64: 66.56205866 | S64: 42.70205569 | T64: 13.09354512 | U64: 0.02851305337 | W64: 8.506688148 | X64: 5.083578058 | Y64: 43.24441322 | AA64: 13.09354512 | AB64: 27.23839151 | AQ64: 2012-02-21 | AR64: -29.98639224 | AS64: 92.9949084 | AT64: -3.101236977 | AU64: -16.27006969 | AV64: -47.49116499 | AW64: -128.5335506 | AX64: 2.918928184 | BF64: 128.8084746 | BH64: 27.93533541 | BJ64: 485.5240185
L65: 2012-02-22 | M65: 2012 | N65: -0.8867717313 | O65: -0.9489448917 | P65: 2.920107253 | Q65: 4.90414264 | R65: 55.81404829 | S65: 41.19479818 | T65: 11.38100018 | U65: -0.1401740551 | W65: 11.47844084 | X65: 4.90414264 | Y65: 56.29191115 | AA65: 11.38100018 | AB65: 18.31594682 | AQ65: 2012-02-22 | AR65: -32.02596722 | AS65: 70.220231 | AT65: -2.192602975 | AU65: -18.0012688 | AV65: -79.73772825 | AW65: -142.2100235 | AX65: 4.429561556 | BF65: 145.0823911 | BH65: 33.91202076 | BJ65: 612.7645048
L66: 2012-02-23 | M66: 2012 | N66: -0.6490002193 | O66: -0.4066705313 | P66: 1.014440749 | Q66: 4.791884164 | R66: 51.30709543 | S66: 40.25182698 | T66: 10.70708174 | U66: -0.06103994715 | W66: 12.822068 | X66: 4.791884164 | Y66: 61.4418646 | AA66: 10.70708174 | AB66: 14.8180719 | AQ66: 2012-02-23 | AR66: -33.51866772 | AS66: 60.46013825 | AT66: -1.803775101 | AU66: -19.16395345 | AV66: -96.6635714 | AW66: -151.3952322 | AX66: 5.044030798 | BF66: 135.6347313 | BH66: 41.15103406 | BJ66: 559.7530313
L67: 2012-02-24 | M67: 2012 | N67: -0.7586860973 | O67: -0.9781883258 | P67: 1.200179068 | Q67: 4.658844353 | R67: 43.56537491 | S67: 39.13429257 | T67: 9.351111908 | U67: -0.1354101104 | W67: 14.59489029 | X67: 4.658844353 | Y67: 67.99532223 | AA67: 9.351111908 | AB67: 8.416256571 | AQ67: 2012-02-24 | AR67: -35.26364575 | AS67: 36.98361843 | AT67: -1.04877467 | AU67: -20.56438205 | AV67: -126.7195959 | AW67: -162.4586182 | AX67: 6.162091113 | BF67: 98.84643493 | BH67: 37.4922347 | BJ67: 534.022239
L68: 2012-02-25 | M68: 2012 | N68: 0.3556136296 | O68: 0.9584335266 | P68: 0.1430109147 | Q68: 4.786789478 | R68: 48.65782765 | S68: 40.20903162 | T68: 10.16502352 | U68: 0.08345750446 | W68: 14.74493437 | X68: 4.786789478 | Y68: 70.58089671 | AA68: 10.16502352 | AB68: 12.36128323 | AQ68: 2012-02-25 | AR68: -34.4457344 | AS68: 59.98602306 | AT68: -1.741464484 | AU68: -19.38441593 | AV68: -106.3589203 | AW68: -153.1368858 | AX68: 5.486826152 | BF68: 155.5943266 | BH68: 41.81094469 | BJ68: 513.7479407
L69: 2012-02-26 | M69: 2012 | N69: 1.671445646 | O69: 2.442534958 | P69: -0.4153428899 | Q69: 5.223996673 | R69: 63.63049994 | S69: 43.88157205 | T69: 12.18042505 | U69: 0.1808773979 | W69: 13.90735592 | X69: 5.223996673 | Y69: 72.65198104 | AA69: 12.18042505 | AB69: 23.55877184 | AQ69: 2012-02-26 | AR69: -30.60140941 | AS69: 118.6068621 | AT69: -3.875862725 | AU69: -15.19278574 | AV69: -49.10448997 | AW69: -120.0230074 | AX69: 3.232092573 | BF69: 95.189152 | BH69: 42.2837062 | BJ69: 473.8076284
L70: 2012-02-27 | M70: 2012 | N70: -0.5907912213 | O70: -0.7844597175 | P70: 0.7345027855 | Q70: 5.112468437 | R70: 55.07290012 | S70: 42.94473487 | T70: 10.77227191 | U70: -0.1228547426 | W70: 15.04304458 | X70: 5.112468437 | Y70: 76.90709061 | AA70: 10.77227191 | AB70: 16.24848379 | AQ70: 2012-02-27 | AR70: -31.96022922 | AS70: 99.77982884 | AT70: -3.121999788 | AU70: -16.25669573 | AV70: -75.86386383 | AW70: -128.4278963 | AX70: 4.666622607 | BF70: 128.2233918 | BH70: 37.43414553 | BJ70: 503.7625308
L71: 2012-02-28 | M71: 2012 | N71: 0.4492535566 | O71: 0.6629302556 | P71: -0.08238571398 | Q71: 5.266105518 | R71: 58.73537267 | S71: 44.23528635 | T71: 11.15347432 | U71: 0.03477563103 | W71: 14.78717907 | X71: 5.266105518 | Y71: 77.87084532 | AA71: 11.15347432 | AB71: 18.680276 | AQ71: 2012-02-28 | AR71: -30.92694604 | AS71: 115.690155 | AT71: -3.740755871 | AU71: -14.91520386 | AV71: -64.15016235 | AW71: -117.8301105 | AX71: 4.300991322 | BF71: 162.887455 | BH71: 45.4120247 | BJ71: 535.1676177
L72: 2012-02-29 | M72: 2012 | N72: -1.274316307 | O72: -1.07265739 | P72: 0.5486110508 | Q72: 4.976455677 | R72: 48.85167707 | S72: 41.80222768 | T72: 9.816560267 | U72: -0.1276802649 | W72: 15.65736057 | X72: 4.976455677 | Y72: 77.91816089 | AA72: 9.816560267 | AB72: 11.29549809 | AQ72: 2012-02-29 | AR72: -33.85787355 | AS72: 89.94637761 | AT72: -2.656586731 | AU72: -17.55469131 | AV72: -97.34712962 | AW72: -138.6820614 | AX72: 5.545362655 | BF72: 97.24012157 | BH72: 24.99312584 | BJ72: 528.583487
L73: 2012-03-01 | M73: 2012 | N73: -0.5659540633 | O73: 1.260255523 | P73: -1.984391476 | Q73: 4.88124416 | R73: 56.07028191 | S73: 41.00245095 | T73: 11.48688328 | U73: 0.157135017 | W73: 11.81256022 | X73: 4.88124416 | Y73: 57.65999059 | AA73: 11.48688328 | AB73: 18.70747842 | AQ73: 2012-03-01 | AR73: -35.15956789 | AS73: 120.1925102 | AT73: -3.418486556 | AU73: -18.53195202 | AV73: -72.0065262 | AW73: -146.4024209 | AX73: 3.885533814 | BF73: 125.951352 | BH73: 43.16060326 | BJ73: 487.7515607
L74: 2012-03-02 | M74: 2012 | N74: -1.860494242 | O74: -0.9258015859 | P74: -0.4273646151 | Q74: 4.480233802 | R74: 47.47835585 | S74: 37.63396394 | T74: 10.59729423 | U74: -0.08060709201 | W74: 11.14807939 | X74: 4.480233802 | Y74: 49.9460021 | AA74: 10.59729423 | AB74: 13.26971607 | AQ74: 2012-03-02 | AR74: -39.43870465 | AS74: 97.9732721 | AT74: -2.484190923 | AU74: -22.47443937 | AV74: -104.7799187 | AW74: -177.548071 | AX74: 4.662181646 | BF74: 105.7931482 | BH74: 39.29275769 | BJ74: 629.2422018
L75: 2012-03-03 | M75: 2012 | N75: 0.8871951641 | O75: 0.9466404591 | P75: -0.2782993125 | Q75: 4.723998126 | R75: 52.54151992 | S75: 39.68158426 | T75: 11.12225672 | U75: 0.04834950332 | W75: 10.72705786 | X75: 4.723998126 | Y75: 50.67460121 | AA75: 11.12225672 | AB75: 16.42512106 | AQ75: 2012-03-03 | AR75: -37.39815577 | AS75: 120.6926431 | AT75: -3.227235157 | AU75: -20.04796 | AV75: -87.42044426 | AW75: -158.378884 | AX75: 4.360565576 | BF75: 143.9843005 | BH75: 27.17269097 | BJ75: 468.5171835
L76: 2012-03-04 | M76: 2012 | N76: -0.7433817223 | O76: -1.231056851 | P76: 0.04047988928 | Q76: 4.59787319 | R76: 42.74097366 | S76: 38.6221348 | T76: 9.295813932 | U76: -0.179384027 | W76: 10.7367596 | X76: 4.59787319 | Y76: 49.36625913 | AA76: 9.295813932 | AB76: 8.042509647 | AQ76: 2012-03-04 | AR76: -39.10793373 | AS76: 91.14727869 | AT76: -2.330659536 | AU76: -21.40213846 | AV76: -125.1314536 | AW76: -169.0768939 | AX76: 5.846679941 | BF76: 141.8421826 | BH76: 53.76479452 | BJ76: 539.3995005
L77: 2012-03-05 | M77: 2012 | N77: -0.7167464308 | O77: -0.06978104512 | P77: -0.4568494323 | Q77: 4.483919825 | R77: 41.84564267 | S77: 37.66492653 | T77: 9.332379772 | U77: 0.003925865015 | W77: 10.1055983 | X77: 4.483919825 | Y77: 45.31269258 | AA77: 9.332379772 | AB77: 7.950711664 | AQ77: 2012-03-05 | AR77: -40.75645052 | AS77: 89.4725336 | AT77: -2.195297492 | AU77: -22.67812852 | AV77: -132.2087749 | AW77: -179.1572153 | AX77: 5.829792117 | BF77: 121.7992073 | BH77: 25.94393789 | BJ77: 469.8257509
L78: 2012-03-06 | M78: =YEAR(L78) -> 2012 | N78: =NORMSINV(RAND()) -> -0.8681278097 | O78: =N78*$E$11+NORMSINV(RAND())*$H$11 -> -1.803551588 | P78: =NORMSINV(RAND()) -> 0.02380704398 | Q78: =Q77+Q77*N78*$E$4+$G$4*($Q$13-Q77) -> 4.342132668 | R78: 31.49726906 | S78: 36.47391441 | T78: =R78/Q78 -> 7.253870729 | U78: -0.251954829 | W78: =W77+P78*W77*$E$5+$G$5*($W$13-W77)+$I$6*(RAND()<$H$6)*W77 -> 10.10138446 | X78: =Q78 -> 4.342132668 | Y78: =W78*X78 -> 43.86155146 | AA78: =R78/Q78 -> 7.253870729 | AB78: =MAX((R78-Q78*$AB$2-$AB$3)*(1-$AB$4),0) -> 0 | AQ78: =L78 -> 2012-03-06 | AR78: -42.75314449 | AS78: =AS77+$AS$10*O78 -> 46.18729549 | AT78: =AS78/AR78 -> -1.080325109 | AU78: =MAX(AU77+$AU$10*N78+$G$4*($AU$13-AU77),$AU$6) -> -24.28634588 | AV78: -181.4593488 | AW78: =$AT$13*AU78 -> -191.8621325 | AX78: =AV78/AU78 -> 7.471661223 | BF78: 121.0740598 | BH78: 41.52832485 | BJ78: 623.7472054
L79: =L78+1 -> 2012-03-07 | M79: 2012 | N79: -0.4633524286 | O79: -2.519337492 | P79: 0.1818813272 | Q79: 4.294271061 | R79: =R78+O79*$E$6*R78+$G$6*(S79-R78)+(RAND()<$H$6)*$I$6*$R$13 -> 21.63893724 | S79: =$Q$13*Q79 -> 36.07187691 | T79: 5.039024535 | U79: =LN(T79/T78) -> -0.3643227014 | W79: 10.28883408 | X79: 4.294271061 | Y79: 44.18304244 | AA79: 5.039024535 | AB79: 0 | AQ79: 2012-03-07 | AR79: =AR78+$AR$10*N79 -> -43.81885507 | AS79: -14.27680431 | AT79: 0.3258141794 | AU79: -24.94347714 | AV79: =MAX(AV78+$AV$10*O79+$G$6*($AT$13*AU79-AV78),$AV$6) -> -243.4828606 | AW79: -197.0534694 | AX79: 9.761384078 | BF79: 140.1596265 | BH79: 28.5872903 | BJ79: 624.5603222
L80: 2012-03-08 | M80: 2012 | N80: -2.318683338 | O80: -0.9523751919 | P80: 0.4398991323 | Q80: 3.85769699 | R80: 20.03641867 | S80: 32.40465471 | T80: 5.19388089 | U80: 0.03026866204 | W80: 10.79612747 | X80: 3.85769699 | Y80: 41.64818844 | AA80: 5.19388089 | AB80: 0 | AQ80: 2012-03-08 | AR80: -49.15182675 | AS80: -37.13380891 | AT80: 0.7554919394 | AU80: -29.85965536 | AV80: -265.5807069 | AW80: -235.8912773 | AX80: 8.894299139 | BF80: 134.9890043 | BH80: 49.04681425 | BJ80: 598.2314669
L81: 2012-03-09 | M81: 2012 | N81: 1.921596953 | O81: 1.862203055 | P81: 1.209664519 | Q81: 4.277709778 | R81: 26.47659743 | S81: 35.93276213 | T81: 6.189432851 | U81: 0.1753622784 | W81: 12.31984864 | X81: 4.277709778 | Y81: 52.70073698 | AA81: 6.189432851 | AB81: 0 | AQ81: 2012-03-09 | AR81: -44.73215376 | AS81: 7.559064395 | AT81: -0.1689850311 | AU81: -24.96173667 | AV81: -214.0495349 | AW81: -197.1977197 | AX81: 8.575105879 | BF81: 142.0824167 | BH81: 41.3192355 | BJ81: 596.1720016
L82: 2012-03-10 | M82: 2012 | N82: -1.183640743 | O82: -0.2969729356 | P82: -0.2367128718 | Q82: 4.081138098 | R82: 26.23492541 | S82: 34.28156002 | T82: 6.428335622 | U82: 0.03787219989 | W82: 11.9035989 | X82: 4.081138098 | Y82: 48.58023097 | AA82: 6.428335622 | AB82: 0 | AQ82: 2012-03-10 | AR82: -47.45452747 | AS82: 0.4317139402 | AT82: -0.009097423644 | AU82: -27.26708867 | AV82: -221.3129319 | AW82: -215.4100005 | AX82: 8.116485576 | BF82: 161.2215812 | BH82: 49.99879225 | BJ82: 501.8636397
L83: 2012-03-11 | M83: 2012 | N83: -0.4317847517 | O83: -0.1462290438 | P83: -0.03887189104 | Q83: 4.048777385 | R83: 26.51368583 | S83: 34.00973003 | T83: 6.548565976 | U83: 0.01853043171 | W83: 11.78801907 | X83: 4.048777385 | Y83: 47.72706502 | AA83: 6.548565976 | AB83: 0 | AQ83: 2012-03-11 | AR83: -48.44763239 | AS83: -3.077783112 | AT83: 0.06352803966 | AU83: -27.81435499 | AV83: -224.6644762 | AW83: -219.7334044 | AX83: 8.077285138 | BF83: 168.8130533 | BH83: 39.18216437 | BJ83: 459.5934985
L84: 2012-03-12 | M84: 2012 | N84: -1.81522149 | O84: -1.177416503 | P84: -1.119125091 | Q84: 3.74304571 | R84: 22.94818098 | S84: 31.44158396 | T84: 6.130884514 | U84: -0.06590705845 | W84: 10.14662663 | X84: 3.74304571 | Y84: 37.97928728 | AA84: 6.130884514 | AB84: 0 | AQ84: 2012-03-12 | AR84: -52.62264182 | AS84: -31.33577919 | AT84: 0.5954809205 | AU84: -31.53668498 | AV84: -255.3700058 | AW84: -249.1398114 | AX84: 8.097553879 | BF84: 158.1151985 | BH84: 29.79119717 | BJ84: 663.4044297
L85: 2012-03-13 | M85: 2012 | N85: -2.625247474 | O85: -3.601219766 | P85: 0.3713367059 | Q85: 3.319762995 | R85: 12.69857622 | S85: 27.88600916 | T85: 3.82514542 | U85: -0.4717425474 | W85: 10.56506502 | X85: 3.319762995 | Y85: 35.0735119 | AA85: 3.82514542 | AB85: 0 | AQ85: 2012-03-13 | AR85: -58.66071101 | AS85: -117.7650536 | AT85: 2.007562669 | AU85: -37.07554561 | AV85: -345.5519606 | AW85: -292.8968103 | AX85: 9.320212419 | BF85: 103.4463993 | BH85: 24.66094831 | BJ85: 770.3787109
L86: 2012-03-14 | M86: 2012 | N86: -0.6901179661 | O86: -0.4850570306 | P86: -1.266588724 | Q86: 3.271005581 | R86: 13.3756239 | S86: 27.47644688 | T86: 4.089147381 | U86: 0.06673999909 | W86: 8.91929798 | X86: 3.271005581 | Y86: 29.17507347 | AA86: 4.089147381 | AB86: 0 | AQ86: 2012-03-14 | AR86: -60.24798233 | AS86: -129.4064223 | AT86: 2.147896366 | AU86: -38.09437261 | AV86: -352.7326877 | AW86: -300.9455436 | AX86: 9.259443416 | BF86: 140.4168936 | BH86: 26.55875644 | BJ86: 462.9181233
L87: 2012-03-15 | M87: 2012 | N87: -1.653981566 | O87: -1.633958598 | P87: -0.4790312779 | Q87: 3.070019048 | R87: 11.77569948 | S87: 25.78816 | T87: 3.83570893 | U87: -0.06398220834 | W87: 8.391293785 | X87: 3.070019048 | Y87: 25.76143175 | AA87: 3.83570893 | AB87: 0 | AQ87: 2012-03-15 | AR87: -64.05213993 | AS87: -168.6214287 | AT87: 2.632565108 | AU87: -41.31735056 | AV87: -389.3151322 | AW87: -326.4070694 | AX87: 9.422558004 | BF87: 145.1111797 | BH87: 27.97395921 | BJ87: 514.3187009
L88: 2012-03-16 | M88: 2012 | N88: -1.483853519 | O88: -1.22305624 | P88: -1.709472323 | Q88: 2.91342634 | R88: 11.1731031 | S88: 24.47278125 | T88: 3.835038816 | U88: -0.0001747194045 | W88: 6.66256224 | X88: 2.91342634 | Y88: 19.41088432 | AA88: 3.835038816 | AB88: 0 | AQ88: 2012-03-16 | AR88: -67.46500303 | AS88: -197.9747784 | AT88: 2.934481131 | AU88: -44.10874677 | AV88: -414.5828787 | AW88: -348.4590995 | AX88: 9.399108092 | BF88: 149.9773064 | BH88: 21.89520462 | BJ88: 544.9267695
L89: 2012-03-17 | M89: 2012 | N89: 1.434670234 | O89: 2.194647858 | P89: -1.878171233 | Q89: 3.186819007 | R89: 15.92045424 | S89: 26.76927966 | T89: 4.99571962 | U89: 0.2644019135 | W89: 5.179511878 | X89: 3.186819007 | Y89: 16.5061669 | AA89: 4.99571962 | AB89: 0 | AQ89: 2012-03-17 | AR89: -64.16526149 | AS89: -145.3032298 | AT89: 2.26451551 | AU89: -40.15264589 | AV89: -352.1736325 | AW89: -317.2059026 | AX89: 8.77086988 | BF89: 173.9971478 | BH89: 32.86069361 | BJ89: 575.36096
L90: 2012-03-18 | M90: 2012 | N90: 1.792899291 | O90: 2.22742583 | P90: 0.4916124505 | Q90: 3.531952401 | R90: 21.90526086 | S90: 29.66840017 | T90: 6.202026067 | U90: 0.216294554 | W90: 5.525876703 | X90: 3.531952401 | Y90: 19.51713349 | AA90: 6.202026067 | AB90: 0 | AQ90: 2012-03-18 | AR90: -60.04159312 | AS90: -91.84500992 | AT90: 1.529689756 | AU90: -35.42206945 | AV90: -291.4814842 | AW90: -279.8343487 | AX90: 8.228810138 | BF90: 132.6894693 | BH90: 57.40935968 | BJ90: 494.5275621
L91: 2012-03-19 | M91: 2012 | N91: 0.7624176572 | O91: 0.06779989143 | P91: 0.3326964987 | Q91: 3.724751317 | R91: 23.03659854 | S91: 31.28791106 | T91: 6.184734652 | U91: -0.002791920643 | W91: 5.782101332 | X91: 3.724751317 | Y91: 21.53688955 | AA91: 6.184734652 | AB91: 0 | AQ91: 2012-03-19 | AR91: -58.28803251 | AS91: -90.21781252 | AT91: 1.547793066 | AU91: -33.12073297 | AV91: -286.8715174 | AW91: -261.6537905 | AX91: 8.661387949 | BF91: 119.8346505 | BH91: 43.9124867 | BJ91: 650.8676411
L92: 2012-03-20 | M92: 2012 | N92: 1.175668885 | O92: 0.7558917561 | P92: -0.8693998196 | Q92: 3.997766562 | R92: 26.35477534 | S92: 33.58123912 | T92: 6.592374749 | U92: 0.06382953692 | W92: 5.210634869 | X92: 3.997766562 | Y92: 20.83090185 | AA92: 6.592374749 | AB92: 0 | AQ92: 2012-03-20 | AR92: -55.58399407 | AS92: -72.07641038 | AT92: 1.296711609 | AU92: -29.89768537 | AV92: -263.662135 | AW92: -236.1917144 | AX92: 8.818814289 | BF92: 126.9420873 | BH92: 37.44308339 | BJ92: 456.2665885
L93: 2012-03-21 | M93: 2012 | N93: 0.893720769 | O93: 0.9989376576 | P93: 0.2384229784 | Q93: 4.227865944 | R93: 30.69318628 | S93: 35.51407393 | T93: 7.259734979 | U93: 0.09642968385 | W93: 5.400055557 | X93: 4.227865944 | Y93: 22.83071098 | AA93: 7.259734979 | AB93: 0 | AQ93: 2012-03-21 | AR93: -53.5284363 | AS93: -48.1019066 | AT93: 0.8986234218 | AU93: -27.36340654 | AV93: -234.9385089 | AW93: -216.1709116 | AX93: 8.585864795 | BF93: 107.9960219 | BH93: 27.79798482 | BJ93: 557.3833022
L94: 2012-03-22 | M94: 2012 | N94: 0.9358089657 | O94: 0.7225495777 | P94: -0.9181931366 | Q94: 4.473884887 | R94: 34.2649863 | S94: 37.58063305 | T94: 7.658888675 | U94: 0.05352356775 | W94: 4.842559449 | X94: 4.473884887 | Y94: 21.66505354 | AA94: 7.658888675 | AB94: 0.8909245595 | AQ94: 2012-03-22 | AR94: -51.37607568 | AS94: -30.76071673 | AT94: 0.5987362079 | AU94: -24.76400333 | AV94: -213.6670307 | AW94: -195.6356263 | AX94: 8.628129623 | BF94: 117.650648 | BH94: 36.22722621 | BJ94: 539.5536372
L95: 2012-03-23 | M95: 2012 | N95: -0.02932701162 | O95: 0.7030349401 | P95: -0.9799961587 | Q95: 4.516532248 | R95: 37.76400749 | S95: 37.93887089 | T95: 8.361283705 | U95: 0.08774507697 | W95: 4.318938299 | X95: 4.516532248 | Y95: 19.5066241 | AA95: 8.361283705 | AB95: 3.899384849 | AQ95: 2012-03-23 | AR95: -51.44352781 | AS95: -13.88787817 | AT95: 0.2699635651 | AU95: -24.41690542 | AV95: -194.7168444 | AW95: -192.8935528 | AX95: 7.974673328 | BF95: 99.1922894 | BH95: 27.92123748 | BJ95: 500.4277845
L96: 2012-03-24 | M96: 2012 | N96: -1.209240507 | O96: 0.7910195887 | P96: 0.1209706789 | Q96: 4.297458482 | R96: 41.48084092 | S96: 36.09865125 | T96: 9.652412258 | U96: 0.1435958904 | W96: 4.435350012 | X96: 4.297458482 | Y96: 19.06073253 | AA96: 9.652412258 | AB96: 8.834713661 | AQ96: 2012-03-24 | AR96: -54.22478097 | AS96: 5.096591961 | AT96: -0.09399008846 | AU96: -26.78794727 | AV96: -177.4231682 | AW96: -211.6247834 | AX96: 6.623246133 | BF96: 125.9310535 | BH96: 24.90121734 | BJ96: 544.261276
L97: 2012-03-25 | M97: 2012 | N97: -0.6427189011 | O97: -1.60217385 | P97: -0.1605248965 | Q97: 4.213399419 | R97: 32.23227493 | S97: 35.39255512 | T97: 7.649945264 | U97: -0.2325093663 | W97: 4.401881669 | X97: 4.213399419 | Y97: 18.54688567 | AA97: 7.649945264 | AB97: 0.6941702562 | AQ97: 2012-03-25 | AR97: -55.70303445 | AS97: -33.35558043 | AT97: 0.5988108325 | AU97: -27.8263514 | AV97: -220.1158413 | AW97: -219.828176 | AX97: 7.910337873 | BF97: 139.3896371 | BH97: 32.71086035 | BJ97: 523.6481595
L98: 2012-03-26 | M98: 2012 | N98: 0.5812895659 | O98: 0.1592923798 | P98: -0.148513817 | Q98: 4.385742977 | R98: 33.36053779 | S98: 36.84024101 | T98: 7.606587518 | U98: -0.005683842149 | W98: 4.375904615 | X98: 4.385742977 | Y98: 19.19159293 | AA98: 7.606587518 | AB98: 0.6207167314 | AQ98: 2012-03-26 | AR98: -54.36606845 | AS98: -29.53256332 | AT98: 0.5432168292 | AU98: -26.036556 | AV98: -214.8501193 | AW98: -205.6887924 | AX98: 8.251864006 | BF98: 99.38240219 | BH98: 32.20687587 | BJ98: 572.176245
L99: 2012-03-27 | M99: 2012 | N99: 1.147779827 | O99: 1.172088268 | P99: -0.3692055608 | Q99: 4.682580688 | R99: 39.04104613 | S99: 39.33367778 | T99: 8.33750633 | U99: 0.09174951989 | W99: 4.234893047 | X99: 4.682580688 | Y99: 19.8302284 | AA99: 8.33750633 | AB99: 4.007202433 | AQ99: 2012-03-27 | AR99: -51.72617484 | AS99: -1.402444893 | AT99: 0.02711286689 | AU99: -22.96620545 | AV99: -183.3782913 | AW99: -181.4330231 | AX99: 7.984701333 | BF99: 133.9283905 | BH99: 42.50954582 | BJ99: 534.6784703
L100: 2012-03-28 | M100: 2012 | N100: 0.4344169982 | O100: 1.271796232 | P100: 1.442743687 | Q100: 4.828723869 | R100: 45.64786276 | S100: 40.5612805 | T100: 9.453400939 | U100: 0.1256103941 | W100: 5.023053477 | X100: 4.828723869 | Y100: 24.25493822 | AA100: 9.453400939 | AB100: 9.255987936 | AQ100: 2012-03-28 | AR100: -50.72701575 | AS100: 29.12066467 | AT100: -0.5740661902 | AU100: -21.57496879 | AV100: -151.5615779 | AW100: -170.4422534 | AX100: 7.024880519 | BF100: 139.0368778 | BH100: 30.88674468 | BJ100: 616.5527331
L101: 2012-03-29 | M101: 2012 | N101: 0.7683461948 | O101: 1.419427423 | P101: -0.3442172229 | Q101: 5.05516127 | R101: 53.75260962 | S101: 42.46335467 | T101: 10.63321361 | U101: 0.1176078974 | W101: 4.858725092 | X101: 5.05516127 | Y101: 24.56163891 | AA101: 10.63321361 | AB101: 15.38449189 | AQ101: 2012-03-29 | AR101: -48.9598195 | AS101: 63.18692283 | AT101: -1.290587332 | AU101: -19.43308543 | AV101: -117.6912995 | AW101: -153.5213749 | AX101: 6.056233319 | BF101: 157.2648806 | BH101: 65.16440405 | BJ101: 534.4093975
L102: 2012-03-30 | M102: 2012 | N102: -0.4996874039 | O102: -0.3499725049 | P102: -0.07805246557 | Q102: 4.973197734 | R102: 50.10928315 | S102: 41.77486096 | T102: 10.07586785 | U102: -0.05383921901 | W102: 4.858835959 | X102: 4.973197734 | Y102: 24.16395198 | AA102: 10.07586785 | AB102: 12.49908507 | AQ102: 2012-03-30 | AR102: -50.10910053 | AS102: 54.78758271 | AT102: -1.093365918 | AU102: -20.23445289 | AV102: -130.3067274 | AW102: -159.8521778 | AX102: 6.439844365 | BF102: 134.7467513 | BH102: 37.46655809 | BJ102: 605.4273606
L103: 2012-03-31 | M103: 2012 | N103: -1.207489086 | O103: -0.5416587939 | P103: 1.211752271 | Q103: 4.721783745 | R103: 45.53617577 | S103: 39.66298346 | T103: 9.64385034 | U103: -0.04382280111 | W103: 5.610978081 | X103: 4.721783745 | Y103: 26.49382509 | AA103: 9.64385034 | AB103: 9.854668187 | AQ103: 2012-03-31 | AR103: -52.88632543 | AS103: 41.78777165 | AT103: -0.7901432236 | AU103: -22.65374713 | AV103: -148.172326 | AW103: -178.9646023 | AX103: 6.540742471 | BF103: 136.7123631 | BH103: 36.4934069 | BJ103: 535.8548429
L104: 2012-04-01 | M104: 2012 | N104: -0.6010967485 | O104: -0.6073193162 | P104: -0.5416315802 | Q104: 4.628687254 | R104: 41.2755056 | S104: 38.88097293 | T104: 8.91732436 | U104: -0.07832449988 | W104: 5.280623458 | X104: 4.628687254 | Y104: 24.4423545 | AA104: 8.91732436 | AB104: 6.462213135 | AQ104: 2012-04-01 | AR104: -54.26884795 | AS104: 27.21210807 | AT104: -0.5014314675 | AU104: -23.64809781 | AV104: -166.6127542 | AW104: -186.8199727 | AX104: 7.04550343 | BF104: 122.8286018 | BH104: 23.96361528 | BJ104: 592.1593961
L105: 2012-04-02 | M105: 2012 | N105: 1.188164492 | O105: 1.909158938 | P105: -1.424801546 | Q105: 4.945311114 | R105: 51.54621144 | S105: 41.54061335 | T105: 10.42324947 | U105: 0.156042895 | W105: 4.41705325 | X105: 4.945311114 | Y105: 21.84370253 | AA105: 10.42324947 | AB105: 14.03329162 | AQ105: 2012-04-02 | AR105: -51.53606961 | AS105: 73.03192258 | AT105: -1.417103072 | AU105: -20.51471825 | AV105: -120.3382917 | AW105: -162.0662742 | AX105: 5.865949033 | BF105: 172.8013146 | BH105: 49.82585406 | BJ105: 547.4950695
L106: 2012-04-03 | M106: 2012 | N106: -0.2077076728 | O106: -0.1980647834 | P106: -0.5799442093 | Q106: 4.938162951 | R106: 49.21241358 | S106: 41.48056878 | T106: 9.96573302 | U106: -0.04488632648 | W106: 4.161900117 | X106: 4.938162951 | Y106: 20.55214096 | AA106: 9.96573302 | AB106: 11.88655655 | AQ106: 2012-04-03 | AR106: -52.01379726 | AS106: 68.27836778 | AT106: -1.312697234 | AU106: -20.63101192 | AV106: -129.3565168 | AW106: -162.9849942 | AX106: 6.27000349 | BF106: 116.426394 | BH106: 24.2840688 | BJ106: 569.9766321
L107: 2012-04-04 | M107: 2012 | N107: -1.65361946 | O107: -1.613375039 | P107: 0.6130518874 | Q107: 4.581309638 | R107: 37.81772196 | S107: 38.48300096 | T107: 8.2547841 | U107: -0.1883595873 | W107: 4.524146902 | X107: 4.581309638 | Y107: 20.72651781 | AA107: 8.2547841 | AB107: 3.523641221 | AQ107: 2012-04-04 | AR107: -55.81712202 | AS107: 29.55736686 | AT107: -0.5295394278 | AU107: -24.07144903 | AV107: -174.1583107 | AW107: -190.1644474 | AX107: 7.235057204 | BF107: 92.88174797 | BH107: 56.4536728 | BJ107: 681.7710469
L108: 2012-04-05 | M108: 2012 | N108: 0.2651487381 | O108: 2.201677205 | P108: 1.367816793 | Q108: 4.688564963 | R108: 48.79845846 | S108: 39.38394569 | T108: 10.4079732 | U108: 0.2317792427 | W108: 5.317369191 | X108: 4.688564963 | Y108: 24.93083088 | AA108: 10.4079732 | AB108: 13.1397935 | AQ108: 2012-04-05 | AR108: -55.20727992 | AS108: 82.39761978 | AT108: -1.492513667 | AU108: -23.05571382 | AV108: -122.1162407 | AW108: -182.1401392 | AX108: 5.29657167 | BF108: 142.5100988 | BH108: 36.09777869 | BJ108: 498.4712515
L109: 2012-04-06 | M109: 2012 | N109: 0.9726658708 | O109: -0.5014652582 | P109: 0.3449308092 | Q109: 4.95841785 | R109: 44.9024885 | S109: 41.65070994 | T109: 9.055809709 | U109: -0.1391656574 | W109: 5.576203588 | X109: 4.95841785 | Y109: 27.64914741 | AA109: 9.055809709 | AB109: 7.701949742 | AQ109: 2012-04-06 | AR109: -52.97014842 | AS109: 70.36245358 | AT109: -1.328341635 | AU109: -20.4253859 | AV109: -138.0758377 | AW109: -161.3605486 | AX109: 6.760011211 | BF109: 138.8146778 | BH109: 42.52911512 | BJ109: 599.2127789
L110: 2012-04-07 | M110: 2012 | N110: 0.943710561 | O110: 2.271223279 | P110: -0.00386927881 | Q110: 5.23072388 | R110: 58.06391275 | S110: 43.93808059 | T110: 11.10055015 | U110: 0.2035881616 | W110: 5.608471428 | X110: 5.23072388 | Y110: 29.33636543 | AA110: 11.10055015 | AB110: 18.28191485 | AQ110: 2012-04-07 | AR110: -50.79961413 | AS110: 124.8718123 | AT110: -2.458125212 | AU110: -17.89453428 | AV110: -83.89557728 | AW110: -141.3668208 | AX110: 4.688335329 | BF110: 109.8816638 | BH110: 56.74721479 | BJ110: 567.534613
L111: 2012-04-08 | M111: 2012 | N111: 1.403307149 | O111: 2.369977515 | P111: 0.7808192166 | Q111: 5.63001513 | R111: 74.87605597 | S111: 47.29212709 | T111: 13.29944134 | U111: 0.1807273599 | W111: 6.168348629 | X111: 5.63001513 | Y111: 34.72789611 | AA111: 13.29944134 | AB111: 31.45799306 | AQ111: 2012-04-08 | AR111: -47.57200769 | AS111: 181.7512726 | AT111: -3.820550813 | AU111: -14.33824616 | AV111: -29.95377367 | AW111: -113.2721447 | AX111: 2.089082119 | BF111: 132.6892388 | BH111: 29.76009279 | BJ111: 640.3921028
L112: 2012-04-09 | M112: 2012 | N112: 0.2205169639 | O112: 0.4029876 | P112: -0.6668243465 | Q112: 5.725474119 | R112: 76.12048451 | S112: 48.0939826 | T112: 13.29505346 | U112: -0.0003299840734 | W112: 5.700738794 | X112: 5.725474119 | Y112: 32.63943242 | AA112: 13.29505346 | AB112: 31.99963573 | AQ112: 2012-04-09 | AR112: -47.06481867 | AS112: 191.422975 | AT112: -4.067220069 | AU112: -13.54682907 | AV112: -27.98868887 | AW112: -107.0199496 | AX112: 2.06606939 | BF112: 121.4669597 | BH112: 30.50883106 | BJ112: 490.470842
L113: 2012-04-10 | M113: 2012 | N113: -0.07314036432 | O113: 0.6305527674 | P113: -1.452228798 | Q113: 5.738386293 | R113: 79.56841822 | S113: 48.20244486 | T113: 13.86599196 | U113: 0.04204717512 | W113: 4.740274466 | X113: 5.738386293 | Y113: 27.20152602 | AA113: 13.86599196 | AB113: 35.15573132 | AQ113: 2012-04-10 | AR113: -47.23304151 | AS113: 206.5562414 | AT113: -4.373130225 | AU113: -13.44071654 | AV113: -20.67471963 | AW113: -106.1816607 | AX113: 1.538215583
L114: 2012-04-11 | M114: 2012 | N114: -1.670206873 | O114: -1.556941145 | P114: -1.124070157 | Q114: 5.302026145 | R114: 59.96044362 | S114: 44.53701962 | T114: 11.30896793 | U114: -0.2038431883 | W114: 4.148262221 | X114: 5.302026145 | Y114: 21.99419476 | AA114: 11.30896793 | AB114: 19.59548496 | AQ114: 2012-04-11 | AR114: -51.07451731 | AS114: 169.189654 | AT114: -3.31260407 | AU114: -17.00918339 | AV114: -69.41109004 | AW114: -134.3725488 | AX114: 4.080800849
L115: 2012-04-12 | M115: 2012 | N115: 0.865660704 | O115: 0.6480418773 | P115: 1.229053029 | Q115: 5.565648847 | R115: 63.69093848 | S115: 46.75145031 | T115: 11.44357832 | U115: 0.01183269458 | W115: 4.816350398 | X115: 5.565648847 | Y115: 26.80611504 | AA115: 11.44357832 | AB115: 21.36751276 | AQ115: 2012-04-12 | AR115: -49.0834977 | AS115: 184.742659 | AT115: -3.763844626 | AU115: -14.70054898 | AV115: -58.53040967 | AW115: -116.1343369 | AX115: 3.98151183
L116: 2012-04-13 | M116: 2012 | N116: -0.8076164712 | O116: -0.6812501462 | P116: 1.273917203 | Q116: 5.380827662 | R116: 56.20110992 | S116: 45.19895236 | T116: 10.44469614 | U116: -0.09133442395 | W116: 5.598880937 | X116: 5.380827662 | Y116: 30.12661342 | AA116: 10.44469614 | AB116: 15.54319731 | AQ116: 2012-04-13 | AR116: -50.94101558 | AS116: 168.3926555 | AT116: -3.305639936 | AU116: -16.26931 | AV116: -81.88012712 | AW116: -128.527549 | AX116: 5.032796542
L117: 2012-04-14 | M117: 2012 | N117: 0.2191591568 | O117: -0.4484174864 | P117: -0.1580509506 | Q117: 5.476350941 | R117: 51.90493086 | S117: 46.00134791 | T117: 9.478013995 | U117: -0.09711950322 | W117: 5.527208709 | X117: 5.476350941 | Y117: 30.26893461 | AA117: 9.478013995 | AB117: 10.87624582 | AQ117: 2012-04-14 | AR117: -50.43694952 | AS117: 157.6306358 | AT117: -3.125300743 | AU117: -15.45687757 | AV117: -96.66506736 | AW117: -122.1093328 | AX117: 6.253854761
L118: 2012-04-15 | M118: 2012 | N118: 0.7327000059 | O118: 0.4417855782 | P118: -0.02600934614 | Q118: 5.70951015 | R118: 54.49143679 | S118: 47.95988526 | T118: 9.543977566 | U118: 0.006935534086 | W118: 5.545549488 | X118: 5.70951015 | Y118: 31.66237109 | AA118: 9.543977566 | AB118: 11.77337379 | AQ118: 2012-04-15 | AR118: -48.75173951 | AS118: 168.2334897 | AT118: -3.450820246 | AU118: -13.47345658 | AV118: -87.03973744 | AW118: -106.440307 | AX118: 6.460089651
L119: 2012-04-16 | M119: 2012 | N119: -1.448821126 | O119: -0.3057339664 | P119: 0.4685732325 | Q119: 5.337810386 | R119: 51.36026903 | S119: 44.83760724 | T119: 9.621973303 | U119: 0.008139034442 | W119: 5.892685772 | X119: 5.337810386 | Y119: 31.45403931 | AA119: 9.621973303 | AB119: 11.27586055 | AQ119: 2012-04-16 | AR119: -52.0840281 | AS119: 160.8958745 | AT119: -3.089159583 | AU119: -16.53232697 | AV119: -98.7339172 | AW119: -130.605383 | AX119: 5.972173028
L120: 2012-04-17 | M120: 2012 | N120: 2.015799308 | O120: 1.009115757 | P120: 0.3679757845 | Q120: 5.903325526 | R120: 57.92073495 | S120: 49.58793442 | T120: 9.811543459 | U120: 0.0195102278 | W120: 6.182999365 | X120: 5.903325526 | Y120: 36.50025798 | AA120: 9.811543459 | AB120: 13.72160889 | AQ120: 2012-04-17 | AR120: -47.44768969 | AS120: 185.1146527 | AT120: -3.901447129 | AU120: -11.58433447 | AV120: -73.79337153 | AW120: -91.51624231 | AX120: 6.370100218
L121: 2012-04-18 | M121: 2012 | N121: -1.584924716 | O121: -1.164325658 | P121: 0.0541151637 | Q121: 5.476073957 | R121: 47.96154586 | S121: 45.99902124 | T121: 8.758381686 | U121: -0.1135484476 | W121: 6.248905658 | X121: 5.476073957 | Y121: 34.21946953 | AA121: 8.758381686 | AB121: 7.17128647 | AQ121: 2012-04-18 | AR121: -51.09301653 | AS121: 157.1708369 | AT121: -3.076170631 | AU121: -14.97985713 | AV121: -106.1919373 | AW121: -118.3408714 | AX121: 7.088981981
L122: 2012-04-19 | M122: 2012 | N122: 1.348325038 | O122: 1.16893095 | P122: -0.5146662589 | Q122: 5.874415886 | R122: 55.38818621 | S122: 49.34509344 | T122: 9.428713814 | U122: 0.0737485454 | W122: 5.887739965 | X122: 5.874415886 | Y122: 34.58703319 | AA122: 9.428713814 | AB122: 11.53123851 | AQ122: 2012-04-19 | AR122: -47.99186895 | AS122: 185.2251797 | AT122: -3.8595117 | AU122: -11.58646133 | AV122: -76.67170524 | AW122: -91.53304454 | AX122: 6.61735305
L123: 2012-04-20 | M123: 2012 | N123: -0.8767553453 | O123: -1.527052191 | P123: 0.2698659401 | Q123: 5.653614837 | R123: 43.60291941 | S123: 47.49036463 | T123: 7.712396523 | U123: -0.200930722 | W123: 6.108591923 | X123: 5.653614837 | Y123: 34.53562593 | AA123: 7.712396523 | AB123: 1.905958617 | AQ123: 2012-04-20 | AR123: -50.00840624 | AS123: 148.5759271 | AT123: -2.97101904 | AU123: -13.35316786 | AV123: -116.2027899 | AW123: -105.4900261 | AX123: 8.702263847
L124: 2012-04-21 | M124: 2012 | N124: -0.3211500039 | O124: -0.8791177646 | P124: 0.3326246089 | Q124: 5.598977388 | R124: 38.96259534 | S124: 47.03141006 | T124: 6.958877065 | U124: -0.1028108521 | W124: 6.379287205 | X124: 5.598977388 | Y124: 35.71748481 | AA124: 6.958877065 | AB124: 0 | AQ124: 2012-04-21 | AR124: -50.74705125 | AS124: 127.4771007 | AT124: -2.51201001 | AU124: -13.81989827 | AV124: -136.5990569 | AW124: -109.1771963 | AX124: 9.884230276
L125: 2012-04-22 | M125: 2012 | N125: -1.62857674 | O125: -1.284597617 | P125: -0.02272877891 | Q125: 5.187190318 | R125: 32.91691225 | S125: 43.57239867 | T125: 6.345807697 | U125: -0.09222373053 | W125: 6.384698687 | X125: 5.187190318 | Y125: 33.11864722 | AA125: 6.345807697 | AB125: 0 | AQ125: 2012-04-22 | AR125: -54.49277775 | AS125: 96.64675793 | AT125: -1.773570038 | AU125: -17.28787605 | AV125: -167.4269161 | AW125: -136.5742208 | AX125: 9.684643484
L126: 2012-04-23 | M126: 2012 | N126: 0.2616050455 | O126: -0.08099754316 | P126: -0.8460883858 | Q126: 5.293843202 | R126: 33.72544474 | S126: 44.4682829 | T126: 6.370692038 | U126: 0.003913714254 | W126: 5.759185878 | X126: 5.293843202 | Y126: 30.48822701 | AA126: 6.370692038 | AB126: 0 | AQ126: 2012-04-23 | AR126: -53.89108615 | AS126: 94.70281689 | AT126: -1.757300208 | AU126: -16.36508599 | AV126: -165.5565835 | AW126: -129.2841793 | AX126: 10.11645057
L127: 2012-04-24 | M127: 2012 | N127: -0.2812073182 | O127: 0.3368687709 | P127: 0.5180150134 | Q127: 5.259725457 | R127: 36.24800603 | S127: 44.18169384 | T127: 6.891615604 | U127: 0.07859743903 | W127: 6.14929946 | X127: 5.259725457 | Y127: 32.34362691 | AA127: 6.891615604 | AB127: 0 | AQ127: 2012-04-24 | AR127: -54.53786298 | AS127: 102.7876674 | AT127: -1.884702879 | AU127: -16.70229925 | AV127: -154.110891 | AW127: -131.9481641 | AX127: 9.226926708
L128: 2012-04-25 | M128: 2012 | N128: 1.3427678 | O128: 1.735120725 | P128: 0.0264604552 | Q128: 5.645045798 | R128: 45.54135054 | S128: 47.4183847 | T128: 8.067490004 | U128: 0.1575368629 | W128: 6.19508556 | X128: 5.645045798 | Y128: 34.97154171 | AA128: 8.067490004 | AB128: 3.784468162 | AQ128: 2012-04-25 | AR128: -51.44949704 | AS128: 144.4305648 | AT128: -2.807229868 | AU128: -13.30015457 | AV128: -107.5640266 | AW128: -105.0712211 | AX128: 8.087426811
L129: 2012-04-26 | M129: 2012 | N129: -1.542062821 | O129: -0.0007513108725 | P129: 0.1867753703 | Q129: 5.252936978 | R129: 45.39523451 | S129: 44.12467062 | T129: 8.641876858 | U129: 0.06877738233 | W129: 6.359510004 | X129: 5.252936978 | Y129: 33.40610526 | AA129: 8.641876858 | AB129: 6.227195122 | AQ129: 2012-04-26 | AR129: -54.99624153 | AS129: 144.4125333 | AT129: -2.625861865 | AU129: -16.57564712 | AV129: -109.9204167 | AW129: -130.9476123 | AX129: 6.63144044
L130: 2012-04-27 | M130: 2012 | N130: -2.749953034 | O130: -2.555501426 | P130: 1.783855733 | Q130: 4.584454097 | R130: 29.62566625 | S130: 38.50941441 | T130: 6.462201524 | U130: -0.2906497353 | W130: 7.74395116 | X130: 4.584454097 | Y130: 35.50178862 | AA130: 6.462201524 | AB130: 0 | AQ130: 2012-04-27 | AR130: -61.32113351 | AS130: 83.08049909 | AT130: -1.354842847 | AU130: -22.58834351 | AV130: -178.1052006 | AW130: -178.4479138 | AX130: 7.884827876
L131: 2012-04-28 | M131: 2012 | N131: -0.2590597097 | O131: -0.2552737478 | P131: -0.0789658086 | Q131: 4.573953701 | R131: 29.5220756 | S131: 38.42121108 | T131: 6.454388814 | U131: -0.001209717132 | W131: 7.672911009 | X131: 4.573953701 | Y131: 35.0955397 | AA131: 6.454388814 | AB131: 0 | AQ131: 2012-04-28 | AR131: -61.91697084 | AS131: 76.95392915 | AT131: -1.242856815 | AU131: -22.79682655 | AV131: -184.4307435 | AW131: -180.0949298 | AX131: 8.09019374
L132: 2012-04-29 | M132: 2012 | N132: -1.069093476 | O132: -2.061936688 | P132: -0.9353736736 | Q132: 4.38217006 | R132: 22.33744629 | S132: 36.81022851 | T132: 5.097348114 | U132: -0.236039909 | W132: 6.815072669 | X132: 4.38217006 | Y132: 29.86480741 | AA132: 5.097348114 | AB132: 0 | AQ132: 2012-04-29 | AR132: -64.37588583 | AS132: 27.46744863 | AT132: -0.4266729425 | AU132: -24.86578122 | AV132: -235.1181168 | AW132: -196.4396716 | AX132: 9.45548884
L133: 2012-04-30 | M133: 2012 | N133: -0.5693728457 | O133: -0.4047406917 | P133: -0.232137197 | Q133: 4.310133591 | R133: 22.54890033 | S133: 36.20512217 | T133: 5.23160126 | U133: 0.02599697275 | W133: 6.641502755 | X133: 4.310133591 | Y133: 28.62576412 | AA133: 5.23160126 | AB133: 0 | AQ133: 2012-04-30 | AR133: -65.68544338 | AS133: 17.75367203 | AT133: -0.2702832031 | AU133: -25.7595165 | AV133: -241.6700997 | AW133: -203.5001803 | AX133: 9.381779343
L134: 2012-05-01 | M134: 2012 | N134: -0.1318504419 | O134: -1.41592771 | P134: 1.000421944 | Q134: 4.333410563 | R134: 19.7834855 | S134: 36.40064873 | T134: 4.565338367 | U134: -0.1362247663 | W134: 7.457696826 | X134: 4.333410563 | Y134: 32.3172622 | AA134: 4.565338367 | AB134: 0 | AQ134: 2012-05-01 | AR134: -65.9886994 | AS134: -16.22859301 | AT134: 0.2459298813 | AU134: -25.63577856 | AV134: -271.7376199 | AW134: -202.5226506 | AX134: 10.59993631
L135: 2012-05-02 | M135: 2012 | N135: 1.403753857 | O135: 1.391541256 | P135: -2.750506898 | Q135: 4.682311979 | R135: 25.31711873 | S135: 39.33142063 | T135: 5.406969643 | U135: 0.1691961628 | W135: 5.002837786 | X135: 4.682311979 | Y135: 23.42484729 | AA135: 5.406969643 | AB135: 0 | AQ135: 2012-05-02 | AR135: -62.76006552 | AS135: 17.16839714 | AT135: -0.2735560742 | AU135: -21.98169745 | AV135: -228.5324087 | AW135: -173.6554099 | AX135: 10.39648595
L136: 2012-05-03 | M136: 2012 | N136: -1.738320673 | O136: -0.4196250105 | P136: 1.246954835 | Q136: 4.329954454 | R136: 25.04148809 | S136: 36.37161741 | T136: 5.783314434 | U136: 0.06728815384 | W136: 5.794892751 | X136: 4.329954454 | Y136: 25.09162167 | AA136: 5.783314434 | AB136: 0 | AQ136: 2012-05-03 | AR136: -66.75820307 | AS136: 7.09739689 | AT136: -0.106314978 | AU136: -25.60006378 | AV136: -235.9742185 | AW136: -202.2405039 | AX136: 9.217719944
L137: 2012-05-04 | M137: 2012 | N137: 0.6079400632 | O137: 1.194362896 | P137: 1.302364807 | Q137: 4.509815309 | R137: 30.21370529 | S137: 37.8824486 | T137: 6.699543821 | U137: 0.1470624879 | W137: 6.732117085 | X137: 4.509815309 | Y137: 30.3606047 | AA137: 6.699543821 | AB137: 0 | AQ137: 2012-05-04 | AR137: -65.35994093 | AS137: 35.76210639 | AT137: -0.547156345 | AU137: -23.77680084 | AV137: -202.4957598 | AW137: -187.8367266 | AX137: 8.516526726
L138: 2012-05-05 | M138: 2012 | N138: 0.3342613248 | O138: 1.023257432 | P138: 0.1344582819 | Q138: 4.632308003 | R138: 35.10260529 | S138: 38.91138723 | T138: 7.57777878 | U138: 0.123180682 | W138: 6.858257997 | X138: 4.632308003 | Y138: 31.76956341 | AA138: 7.57777878 | AB138: 0.6358623095 | AQ138: 2012-05-05 | AR138: -64.59113988 | AS138: 60.32028475 | AT138: -0.9338786227 | AU138: -22.60578978 | AV138: -175.5465794 | AW138: -178.5857393 | AX138: 7.765558341
L139: 2012-05-06 | M139: 2012 | N139: 1.800071583 | O139: 1.198977364 | P139: 1.265941438 | Q139: 5.087989967 | R139: 41.33759612 | S139: 42.73911572 | T139: 8.12454356 | U139: 0.06966942968 | W139: 7.915742486 | X139: 5.087989967 | Y139: 40.27521835 | AA139: 8.12454356 | AB139: 3.49836637 | AQ139: 2012-05-06 | AR139: -60.45097524 | AS139: 89.09574148 | AT139: -1.473851185 | AU139: -18.07805277 | AV139: -143.4981264 | AW139: -142.8166169 | AX139: 7.937698171
L140: 2012-05-07 | M140: 2012 | N140: -0.05339229122 | O140: -1.094286371 | P140: 0.2737432316 | Q140: 5.11607878 | R140: 35.62077084 | S140: 42.97506175 | T140: 6.962514139 | U140: -0.1543489135 | W140: 8.17553206 | X140: 5.11607878 | Y140: 41.82666609 | AA140: 6.962514139 | AB140: 0 | AQ140: 2012-05-07 | AR140: -60.57377751 | AS140: 62.83286859 | AT140: -1.037294869 | AU140: -17.86987938 | AV140: -169.5283914 | AW140: -141.1720471 | AX140: 9.486823485
L141: 2012-05-08 | M141: 2012 | N141: -0.6428622774 | O141: -1.956539411 | P141: -0.3976536277 | Q141: 4.995970026 | R141: 27.19516112 | S141: 41.96614822 | T141: 5.443419591 | U141: -0.2461331713 | W141: 7.781275481 | X141: 4.995970026 | Y141: 38.87501907 | AA141: 5.443419591 | AB141: 0 | AQ141: 2012-05-08 | AR141: -62.05236075 | AS141: 15.87592271 | AT141: -0.2558471994 | AU141: -19.02008913 | AV141: -214.5583685 | AW141: -150.2587041 | AX141: 11.28061846
L142: 2012-05-09 | M142: =YEAR(L142) -> 2012 | N142: =NORMSINV(RAND()) -> -0.4471674811 | O142: =N142*$E$11+NORMSINV(RAND())*$H$11 -> 0.3366163798 | P142: =NORMSINV(RAND()) -> 0.4952745118 | Q142: =Q141+Q141*N142*$E$4+$G$4*($Q$13-Q141) -> 4.92905267 | R142: 29.80611302 | S142: 41.40404243 | T142: =R142/Q142 -> 6.047026683 | U142: 0.1051592293 | W142: =W141+P142*W141*$E$5+$G$5*($W$13-W141)+$I$6*(RAND()<$H$6)*W141 -> 8.245520439 | X142: =Q142 -> 4.92905267 | Y142: =W142*X142 -> 40.64260453 | AA142: =R142/Q142 -> 6.047026683 | AB142: =MAX((R142-Q142*$AB$2-$AB$3)*(1-$AB$4),0) -> 0 | AQ142: =L142 -> 2012-05-09 | AR142: -63.08084595 | AS142: =AS141+$AS$10*O142 -> 23.95471582 | AT142: =AS142/AR142 -> -0.3797462679 | AU142: =MAX(AU141+$AU$10*N142+$G$4*($AU$13-AU141),$AU$6) -> -19.70582322 | AV142: -200.5913389 | AW142: =$AT$13*AU142 -> -155.6760034 | AX142: =AV142/AU142 -> 10.17929252
L143: =L142+1 -> 2012-05-10 | M143: 2012 | N143: 1.049088494 | O143: 0.0526982818 | P143: 0.4540138347 | Q143: 5.225819121 | R143: =R142+O143*$E$6*R142+$G$6*(S143-R142)+(RAND()<$H$6)*$I$6*$R$13 -> 31.4193848 | S143: =$Q$13*Q143 -> 43.89688062 | T143: 6.012336836 | U143: =LN(T143/T142) -> -0.005753196334 | W143: 8.689567274 | X143: 5.225819121 | Y143: 45.41010682 | AA143: 6.012336836 | AB143: 0 | AQ143: 2012-05-10 | AR143: =AR142+$AR$10*N143 -> -60.66794242 | AS143: 25.21947459 | AT143: -0.4156968835 | AU143: -16.94159689 | AV143: =MAX(AV142+$AV$10*O143+$G$6*($AT$13*AU143-AV142),$AV$6) -> -192.6513078 | AW143: -133.8386154 | AX143: 11.37149638
L144: 2012-05-11 | M144: 2012 | N144: -1.738418001 | O144: -0.808853835 | P144: 1.048909619 | Q144: 4.820348139 | R144: 29.02275907 | S144: 40.49092437 | T144: 6.020884433 | U144: 0.001420666766 | W144: 9.771472249 | X144: 4.820348139 | Y144: 47.10189807 | AA144: 6.020884433 | AB144: 0 | AQ144: 2012-05-11 | AR144: -64.66630382 | AS144: 5.806982549 | AT144: -0.08979920308 | AU144: -20.62318833 | AV144: -209.0909878 | AW144: -162.9231878 | AX144: 10.13863543
L145: 2012-05-12 | M145: 2012 | N145: 0.3947389852 | O145: 0.8605822934 | P145: -1.776287048 | Q145: 4.958329974 | R145: 33.53242177 | S145: 41.64997178 | T145: 6.762845948 | U145: 0.1162096353 | W145: 7.660567414 | X145: 4.958329974 | Y145: 37.98362103 | AA145: 6.762845948 | AB145: 0 | AQ145: 2012-05-12 | AR145: -63.75840415 | AS145: 26.46095759 | AT145: -0.4150191327 | AU145: -19.35249881 | AV145: -182.8163881 | AW145: -152.8847406 | AX145: 9.446655435
L146: 2012-05-13 | M146: 2012 | N146: 0.4919658228 | O146: 1.635124915 | P146: 0.6151703509 | Q146: 5.120877965 | R146: 41.60857787 | S146: 43.01537491 | T146: 8.125282061 | U146: 0.1835366432 | W146: 8.229665376 | X146: 5.120877965 | Y146: 42.14311208 | AA146: 8.125282061 | AB146: 3.536686185 | AQ146: 2012-05-13 | AR146: -62.62688276 | AS146: 65.70395555 | AT146: -1.049133418 | AU146: -17.87407118 | AV146: -139.4122675 | AW146: -141.2051623 | AX146: 7.79969298
L147: 2012-05-14 | M147: 2012 | N147: 0.6070928321 | O147: -0.6640673638 | P147: 1.135411604 | Q147: 5.314200558 | R147: 38.31963173 | S147: 44.63928468 | T147: 7.210798936 | U147: -0.1194006882 | W147: 9.346007303 | X147: 5.314200558 | Y147: 49.66655722 | AA147: 7.210798936 | AB147: 0 | AQ147: 2012-05-14 | AR147: -61.23056924 | AS147: 49.76633882 | AT147: -0.8127694946 | AU147: -16.14933178 | AV147: -154.1666296 | AW147: -127.5797211 | AX147: 9.546316326
L148: 2012-05-15 | M148: 2012 | N148: -0.6711308211 | O148: -0.5854019748 | P148: -1.801678408 | Q148: 5.178013385 | R148: 35.92098935 | S148: 43.49531244 | T148: 6.937214463 | U148: -0.03867943485 | W148: 7.303697246 | X148: 5.178013385 | Y148: 37.8186421 | AA148: 6.937214463 | AB148: 0 | AQ148: 2012-05-15 | AR148: -62.77417013 | AS148: 35.71669142 | AT148: -0.5689711444 | AU148: -17.38606602 | AV148: -166.5346062 | AW148: -137.3499216 | AX148: 9.578624975
L149: 2012-05-16 | M149: 2012 | N149: -0.6204753714 | O149: 0.02244802291 | P149: -0.3335327361 | Q149: 5.060859559 | R149: 36.68483862 | S149: 42.51122029 | T149: 7.24873674 | U149: 0.04392689106 | W149: 7.020319132 | X149: 5.060859559 | Y149: 35.52884919 | AA149: 7.24873674 | AB149: 0 | AQ149: 2012-05-16 | AR149: -64.20126349 | AS149: 36.25544397 | AT149: -0.5647154277 | AU149: -18.49083355 | AV149: -163.9501515 | AW149: -146.077585 | AX149: 8.866563592
L150: 2012-05-17 | M150: 2012 | N150: -0.1503394123 | O150: -0.4270459888 | P150: -1.446152901 | Q150: 5.065317328 | R150: 35.2346266 | S150: 42.54866556 | T150: 6.956055132 | U150: -0.04121468857 | W150: 5.81521976 | X150: 5.065317328 | Y150: 29.45593342 | AA150: 6.956055132 | AB150: 0 | AQ150: 2012-05-17 | AR150: -64.54704414 | AS150: 26.00634024 | AT150: -0.4029052079 | AU150: -18.50047878 | AV150: -172.4196184 | AW150: -146.1537824 | AX150: 9.319738176
L151: 2012-05-18 | M151: 2012 | N151: 0.3388812012 | O151: 0.7681829071 | P151: -1.229509135 | Q151: 5.191111362 | R151: 39.59036041 | S151: 43.60533544 | T151: 7.626567347 | U151: 0.09202533277 | W151: 4.988507566 | X151: 5.191111362 | Y151: 25.8958983 | AA151: 7.626567347 | AB151: 1.177426021 | AQ151: 2012-05-18 | AR151: -63.76761737 | AS151: 44.44273001 | AT151: -0.6969482605 | AU151: -17.38479603 | AV151: -150.4752556 | AW151: -137.3398886 | AX151: 8.655566355
L152: 2012-05-19 | M152: 2012 | N152: 1.288841545 | O152: 1.301182615 | P152: 1.259038692 | Q152: 5.559057949 | R152: 46.99779058 | S152: 46.69608677 | T152: 8.454272469 | U152: 0.1030340762 | W152: 5.785866837 | X152: 5.559057949 | Y152: 32.16396903 | AA152: 8.454272469 | AB152: 5.719321835 | AQ152: 2012-05-19 | AR152: -60.80328182 | AS152: 75.67111278 | AT152: -1.244523495 | AU152: -14.09815053 | AV152: -115.3368862 | AW152: -111.3753892 | AX152: 8.180994094
L153: 2012-05-20 | M153: 2012 | N153: -0.5642790918 | O153: -0.3660996004 | P153: -1.035546416 | Q153: 5.440863576 | R153: 44.63157352 | S153: 45.70325404 | T153: 8.203031171 | U153: -0.03016819025 | W153: 5.098594794 | X153: 5.440863576 | Y153: 27.74075871 | AA153: 8.203031171 | AB153: 4.272796772 | AQ153: 2012-05-20 | AR153: -62.10112373 | AS153: 66.88472237 | AT153: -1.07702918 | AU153: -15.11476556 | AV153: -124.5302528 | AW153: -119.4066479 | AX153: 8.238980109
L154: 2012-05-21 | M154: 2012 | N154: -0.5945633182 | O154: -0.5092043798 | P154: -0.9522130966 | Q154: 5.319340825 | R154: 41.6822054 | S154: 44.68246293 | T154: 7.835971933 | U154: -0.04577882269 | W154: 4.558022024 | X154: 5.319340825 | Y154: 24.24567263 | AA154: 7.835971933 | AB154: 2.300010455 | AQ154: 2012-05-21 | AR154: -63.46861936 | AS154: 54.66381725 | AT154: -0.8612731426 | AU154: -16.18832662 | AV154: -137.0869106 | AW154: -127.8877803 | AX154: 8.468257027
L155: 2012-05-22 | M155: 2012 | N155: -0.4321932093 | O155: 0.6737189856 | P155: 0.8527396193 | Q155: 5.245198898 | R155: 45.57062405 | S155: 44.05967074 | T155: 8.688064062 | U155: 0.1032252185 | W155: 5.074568409 | X155: 5.245198898 | Y155: 26.61712063 | AA155: 8.688064062 | AB155: 6.442977855 | AQ155: 2012-05-22 | AR155: -64.46266374 | AS155: 70.83307291 | AT155: -1.098823238 | AU155: -16.87501692 | AV155: -120.5402273 | AW155: -133.3126337 | AX155: 7.143117419
L156: 2012-05-23 | M156: 2012 | N156: 2.049131797 | O156: 2.066341136 | P156: 0.8561902536 | Q156: 5.811291 | R156: 58.13642524 | S156: 48.8148444 | T156: 10.00404647 | U156: 0.1410395217 | W156: 5.638325405 | X156: 5.811291 | Y156: 32.76594968 | AA156: 10.00404647 | AB156: 14.52994495 | AQ156: 2012-05-23 | AR156: -59.74966061 | AS156: 120.4252602 | AT156: -2.015496974 | AU156: -11.84607607 | AV156: -68.25241739 | AW156: -93.58400098 | AX156: 5.761605528
L157: 2012-05-24 | M157: 2012 | N157: -0.9528468034 | O157: -1.026404992 | P157: 0.7239897568 | Q157: 5.57232363 | R157: 49.24623734 | S157: 46.80751849 | T157: 8.837648459 | U157: -0.1239688287 | W157: 6.162101304 | X157: 5.57232363 | Y157: 34.33722271 | AA157: 8.837648459 | AB157: 7.745573616 | AQ157: 2012-05-24 | AR157: -61.94120826 | AS157: 95.79154036 | AT157: -1.546491311 | AU157: -13.78454777 | AV157: -96.95068821 | AW157: -108.8979274 | AX157: 7.03328755
L158: 2012-05-25 | M158: 2012 | N158: -1.312342273 | O158: -1.344220148 | P158: -1.035624688 | Q158: 5.249342588 | R158: 40.12534941 | S158: 44.09447774 | T158: 7.643880874 | U158: -0.1451153879 | W158: 5.422374876 | X158: 5.249342588 | Y158: 28.46390336 | AA158: 7.643880874 | AB158: 1.297154214 | AQ158: 2012-05-25 | AR158: -64.95959549 | AS158: 63.53025682 | AT158: -0.9779964968 | AU158: -16.52562815 | AV158: -132.5721492 | AW158: -130.5524624 | AX158: 8.022215432
L159: 2012-05-26 | M159: 2012 | N159: -0.8499972339 | O159: -1.196471162 | P159: 0.8140908443 | Q159: 5.070091398 | R159: 34.1305442 | S159: 42.58876775 | T159: 6.731741406 | U159: -0.127071579 | W159: 5.989255942 | X159: 5.070091398 | Y159: 30.36607503 | AA159: 6.731741406 | AB159: 0 | AQ159: 2012-05-26 | AR159: -66.91458912 | AS159: 34.81494894 | AT159: -0.5202893629 | AU159: -18.16905144 | AV159: -162.3837928 | AW159: -143.5355063 | AX159: 8.937384174
L160: 2012-05-27 | M160: 2012 | N160: -0.4265607673 | O160: -0.5263259658 | P160: -0.05751428958 | Q160: 5.005742854 | R160: 32.58702086 | S160: 42.04823997 | T160: 6.50992706 | U160: -0.03350561102 | W160: 5.976580967 | X160: 5.005742854 | Y160: 29.91722747 | AA160: 6.50992706 | AB160: 0 | AQ160: 2012-05-27 | AR160: -67.89567889 | AS160: 22.18312576 | AT160: -0.3267236756 | AU160: -18.81802806 | AV160: -173.6434788 | AW160: -148.6624217 | AX160: 9.227506639
L161: 2012-05-28 | M161: 2012 | N161: 1.356184328 | O161: 2.515311215 | P161: 0.2981999971 | Q161: 5.380817859 | R161: 44.50385065 | S161: 45.19887001 | T161: 8.270833881 | U161: 0.239407084 | W161: 6.219298223 | X161: 5.380817859 | Y161: 33.46491095 | AA161: 8.270833881 | AB161: 4.547838102 | AQ161: 2012-05-28 | AR161: -64.77645493 | AS161: 82.55059492 | AT161: -1.274391984 | AU161: -15.35857875 | AV161: -108.044939 | AW161: -121.3327721 | AX161: 7.034826643
L162: 2012-05-29 | M162: 2012 | N162: 1.458069512 | O162: 1.673585046 | P162: 0.8307849539 | Q162: 5.802992353 | R162: 54.61050643 | S162: 48.74513576 | T162: 9.410749335 | U162: 0.1291172463 | W162: 6.864536677 | X162: 5.802992353 | Y162: 39.83485384 | AA162: 9.410749335 | AB162: 11.27018636 | AQ162: 2012-05-29 | AR162: -61.42289506 | AS162: 122.716636 | AT162: -1.997897297 | AU162: -11.70803664 | AV162: -66.32375294 | AW162: -92.49348946 | AX162: 5.664805721
L163: 2012-05-30 | M163: 2012 | N163: -1.327878171 | O163: -1.426358846 | P163: 1.522720105 | Q163: 5.457877272 | R163: 43.60782943 | S163: 45.84616908 | T163: 7.98988824 | U163: -0.16367581 | W163: 8.134400787 | X163: 5.457877272 | Y163: 44.39656117 | AA163: 7.98988824 | AB163: 3.198527216 | AQ163: 2012-05-30 | AR163: -64.47701485 | AS163: 88.48402372 | AT163: -1.372334373 | AU163: -14.51080597 | AV163: -105.3875267 | AW163: -114.6353672 | AX163: 7.262692842
L164: 2012-05-31 | M164: 2012 | N164: 1.200114332 | O164: 1.506269757 | P164: 0.04018461554 | Q164: 5.815607566 | R164: 52.67122694 | S164: 48.85110355 | T164: 9.056874342 | U164: 0.1253472929 | W164: 8.170110108 | X164: 5.815607566 | Y164: 47.51415416 | AA164: 9.056874342 | AB164: 9.364255545 | AQ164: 2012-05-31 | AR164: -61.71675188 | AS164: 124.6344979 | AT164: -2.019459775 | AU164: -11.46415794 | AV164: -67.75498461 | AW164: -90.5668477 | AX164: 5.910157989
L165: 2012-06-01 | M165: 2012 | N165: 0.1884159004 | O165: 1.31442332 | P165: -1.035368197 | Q165: 5.901604365 | R165: 61.36164948 | S165: 49.57347667 | T165: 10.39745223 | U165: 0.1380367334 | W165: 7.150969795 | X165: 5.901604365 | Y165: 42.20219456 | AA165: 10.39745223 | AB165: 16.96739379 | AQ165: 2012-06-01 | AR165: -61.28339531 | AS165: 156.1806576 | AT165: -2.54849877 | AU165: -10.78249939 | AV165: -37.95150099 | AW165: -85.18174519 | AX165: 3.519731337
L166: 2012-06-02 | M166: 2012 | N166: -1.381022528 | O166: -1.460225444 | P166: -1.119401887 | Q166: 5.53347213 | R166: 48.22536168 | S166: 46.48116589 | T166: 8.7152082 | U166: -0.17649123 | W166: 6.201628158 | X166: 5.53347213 | Y166: 34.31653658 | AA166: 8.7152082 | AB166: 7.041593366 | AQ166: 2012-06-02 | AR166: -64.45974713 | AS166: 121.1352469 | AT166: -1.87923863 | AU166: -13.71906996 | AV166: -80.03982682 | AW166: -108.3806527 | AX166: 5.834202103
L167: 2012-06-03 | M167: 2012 | N167: -0.07747500278 | O167: 0.8668614377 | P167: -1.330503689 | Q167: 5.548297146 | R167: 53.49800694 | S167: 46.60569603 | T167: 9.642238968 | U167: 0.1010837712 | W167: 5.236949039 | X167: 5.548297146 | Y167: 29.05614941 | AA167: 9.642238968 | AB167: 11.90033131 | AQ167: 2012-06-03 | AR167: -64.63793963 | AS167: 141.9399214 | AT167: -2.195922739 | AU167: -13.62077409 | AV167: -61.99158117 | AW167: -107.6041153 | AX167: 4.551252428
L168: 2012-06-04 | M168: 2012 | N168: 0.340842108 | O168: 0.003566862619 | P168: -0.4564216447 | Q168: 5.676607003 | R168: 52.94136274 | S168: 47.68349883 | T168: 9.32623356 | U168: -0.03332209769 | W168: 4.990063976 | X168: 5.676607003 | Y168: 28.32663211 | AA168: 9.32623356 | AB168: 10.53280689 | AQ168: 2012-06-04 | AR168: -63.85400278 | AS168: 142.0255261 | AT168: -2.224222757 | AU168: -12.56157757 | AV168: -65.63046463 | AW168: -99.2364628 | AX168: 5.224699228
L169: 2012-06-05 | M169: 2012 | N169: -0.5503115542 | O169: -0.7871627672 | P169: 0.2219847728 | Q169: 5.557578197 | R169: 46.8980411 | S169: 46.68365685 | T169: 8.438575121 | U169: -0.1000177722 | W169: 5.166639203 | X169: 5.557578197 | Y169: 28.71400138 | AA169: 8.438575121 | AB169: 5.635294102 | AQ169: 2012-06-05 | AR169: -65.11971936 | AS169: 123.1336197 | AT169: -1.890880687 | AU169: -13.56527442 | AV169: -88.67589137 | AW169: -107.165668 | AX169: 6.536977329
L170: 2012-06-06 | M170: 2012 | N170: 0.3700768468 | O170: -0.05537942024 | P170: 1.14231117 | Q170: 5.693888289 | R170: 46.65346893 | S170: 47.82866163 | T170: 8.19360454 | U170: -0.02945955403 | W170: 5.915868775 | X170: 5.693888289 | Y170: 33.68429594 | AA170: 8.19360454 | AB170: 4.508475855 | AQ170: 2012-06-06 | AR170: -64.26854261 | AS170: 121.8045136 | AT170: -1.895243126 | AU170: -12.43953175 | AV170: -90.9646384 | AW170: -98.2723008 | AX170: 7.312545219
L171: 2012-06-07 | M171: 2012 | N171: 1.994243651 | O171: 0.3951486743 | P171: 0.8776655339 | Q171: 6.284109713 | R171: 49.66333153 | S171: 52.78652159 | T171: 7.903001984 | U171: -0.03611123054 | W171: 6.568689239 | X171: 6.284109713 | Y171: 41.27836385 | AA171: 7.903001984 | AB171: 3.454089725 | AQ171: 2012-06-07 | AR171: -59.68178221 | AS171: 131.2880818 | AT171: -2.19980163 | AU171: -7.592277202 | AV171: -78.38250537 | AW171: -59.97898989 | AX171: 10.32397834
L172: 2012-06-08 | M172: 2012 | N172: 0.02378292682 | O172: -1.868155764 | P172: 0.05808863204 | Q172: 6.317881614 | R172: 37.94276986 | S172: 53.07020555 | T172: 6.005615834 | U172: -0.2745476814 | W172: 6.634446841 | X172: 6.317881614 | Y172: 41.91564971 | AA172: 6.005615834 | AB172: 0 | AQ172: 2012-06-08 | AR172: -59.62708148 | AS172: 86.45234347 | AT172: -1.449883867 | AU172: -7.337673005 | AV172: -121.1767548 | AW172: -57.96761674 | AX172: 16.51433019
L173: 2012-06-09 | M173: 2012 | N173: 0.07731032958 | O173: 0.0782712663 | P173: 1.159338551 | Q173: 6.367841531 | R173: 39.88355748 | S173: 53.48986886 | T173: 6.263277326 | U173: 0.04200857883 | W173: 7.576418537 | X173: 6.367841531 | Y173: 48.24543262 | AA173: 6.263277326 | AB173: 0 | AQ173: 2012-06-09 | AR173: -59.44926772 | AS173: 88.33085386 | AT173: -1.485819039 | AU173: -6.963138335 | AV173: -112.6814482 | AW173: -55.00879284 | AX173: 16.18256637
L174: 2012-06-10 | M174: 2012 | N174: -1.13128163 | O174: -1.369831701 | P174: -0.1161028864 | Q174: 6.040256227 | R174: 33.86662798 | S174: 50.73815231 | T174: 5.606819763 | U174: -0.1107199111 | W174: 7.475714972 | X174: 6.040256227 | Y174: 45.15523391 | AA174: 5.606819763 | AB174: 0 | AQ174: 2012-06-10 | AR174: -62.05121547 | AS174: 55.45489304 | AT174: -0.8936955161 | AU174: -9.373046855 | AV174: -141.6939713 | AW174: -74.04707016 | AX174: 15.11717304
L175: 2012-06-11 | M175: 2012 | N175: 0.2308871957 | O175: -0.266171059 | P175: -1.657569238 | Q175: 6.138089297 | R175: 34.46409908 | S175: 51.5599501 | T175: 5.614792717 | U175: 0.001421000072 | W175: 5.995097427 | X175: 6.138089297 | Y175: 36.79844335 | AA175: 5.614792717 | AB175: 0 | AQ175: 2012-06-11 | AR175: -61.52017492 | AS175: 49.06678762 | AT175: -0.7975723034 | AU175: -8.61984322 | AV175: -140.7223557 | AW175: -68.09676143 | AX175: 16.32539619
L176: 2012-06-12 | M176: 2012 | N176: 1.127760878 | O176: 0.3296913067 | P176: -1.702356073 | Q176: 6.505555733 | R176: 37.95948279 | S176: 54.64666816 | T176: 5.834933148 | U176: 0.03845813704 | W176: 4.798976104 | X176: 6.505555733 | Y176: 31.2200065 | AA176: 5.834933148 | AB176: 0 | AQ176: 2012-06-12 | AR176: -58.92632491 | AS176: 56.97937898 | AT176: -0.9669596581 | AU176: -5.813245161 | AV176: -123.3299924 | AW176: -45.92463677 | AX176: 21.21534341
L177: 2012-06-13 | M177: 2012 | N177: -0.136935054 | O177: 1.180866157 | P177: -1.081783182 | Q177: 6.485585193 | R177: 45.43868499 | S177: 54.47891562 | T177: 7.006104096 | U177: 0.1829189742 | W177: 4.222517265 | X177: 6.485585193 | Y177: 27.38549546 | AA177: 7.006104096 | AB177: 0 | AQ177: 2012-06-13 | AR177: -59.24127553 | AS177: 85.32016676 | AT177: -1.440214884 | AU177: -5.950530221 | AV177: -87.3571243 | AW177: -47.00918874 | AX177: 14.68056141
L178: 2012-06-14 | M178: 2012 | N178: 1.550391359 | O178: 1.90488155 | P178: -0.06084455842 | Q178: 7.002219945 | R178: 58.0288719 | S178: 58.81864754 | T178: 8.287210677 | U178: 0.1679316613 | W178: 4.246849443 | X178: 7.002219945 | Y178: 29.73737387 | AA178: 8.287210677 | AB178: 6.592532341 | AQ178: 2012-06-14 | AR178: -55.6753754 | AS178: 131.0373239 | AT178: -2.353595696 | AU178: -2.205248466 | AV178: -34.64640096 | AW178: -17.42146289 | AX178: 15.71088314
L179: 2012-06-15 | M179: 2012 | N179: 0.6998867404 | O179: 1.204009492 | P179: -0.3790520104 | Q179: 7.25982948 | R179: 100.5869921 | S179: 60.98256763 | T179: 13.85528302 | U179: 0.513953161 | W179: 4.108473483 | X179: 7.25982948 | Y179: 29.82681691 | AA179: 13.85528302 | AB179: 44.9020946 | AQ179: 2012-06-15 | AR179: -54.0656359 | AS179: 159.9335517 | AT179: -2.958136885 | AU179: -0.4629433578 | AV179: -2.651258318 | AW179: -3.657252527 | AX179: 5.726960488
L180: 2012-06-16 | M180: 2012 | N180: -0.2243402612 | O180: 0.3462990084 | P180: 0.5010576627 | Q180: 7.194276681 | R180: 101.0997981 | S180: 60.43192412 | T180: 14.05280928 | U180: 0.01415571958 | W180: 4.412376235 | X180: 7.194276681 | Y180: 31.74385546 | AA180: 14.05280928 | AB180: 45.81546968 | AQ180: 2012-06-16 | AR180: -54.5816185 | AS180: 168.2447279 | AT180: -3.082443001 | AU180: -0.8681391666 | AV180: 5.239213773 | AW180: -6.858299416 | AX180: -6.034992976
L181: 2012-06-17 | M181: 2012 | N181: 0.3231112614 | O181: -0.1044512916 | P181: -0.1631501674 | Q181: 7.323251262 | R181: 95.7685488 | S181: 61.5153106 | T181: 13.07732664 | U181: -0.07194238517 | W181: 4.378305001 | X181: 7.323251262 | Y181: 32.06342762 | AA181: 13.07732664 | AB181: 39.95544257 | AQ181: 2012-06-17 | AR181: -53.8384626 | AS181: 165.737897 | AT181: -3.07842923 | AU181: -0.00913152587 | AV181: 2.20124749 | AW181: -0.07213905438 | AX181: -241.0602041
L182: 2012-06-18 | M182: 2012 | N182: -0.05741025834 | O182: -1.496373599 | P182: -1.555801831 | Q182: 7.316109563 | R182: 73.7075073 | S182: 61.45532033 | T182: 10.0746861 | U182: -0.2608539889 | W182: 3.613717433 | X182: 7.316109563 | Y182: 26.43835267 | AA182: 10.0746861 | AB182: 19.26505594 | AQ182: 2012-06-18 | AR182: -53.97050619 | AS182: 129.8249306 | AT182: -2.405479209 | AU182: -0.03606097598 | AV182: -33.96033181 | AW182: -0.2848817102 | AX182: 941.74744
L183: 2012-06-19 | M183: 2012 | N183: -0.899775933 | O183: -1.442148773 | P183: 0.1776837675 | Q183: 7.007098088 | R183: 58.40408411 | S183: 58.85962394 | T183: 8.334988804 | U183: -0.1895637778 | W183: 3.755063543 | X183: 7.007098088 | Y183: 26.31209857 | AA183: 8.334988804 | AB183: 6.913133645 | AQ183: 2012-06-19 | AR183: -56.03999084 | AS183: 95.21336002 | AT183: -1.69902526 | AU183: -2.00009486 | AV183: -66.75594412 | AW183: -15.80074939 | AX183: 33.37638902
L184: 2012-06-20 | M184: 2012 | N184: 0.02490299686 | O184: 1.381128175 | P184: -0.8613526233 | Q184: 7.033059751 | R184: 68.95770428 | S184: 59.07770191 | T184: 9.804794318 | U184: 0.1624093092 | W184: 3.42910553 | X184: 7.033059751 | Y184: 24.11710409 | AA184: 9.804794318 | AB184: 16.66270886 | AQ184: 2012-06-20 | AR184: -55.98271395 | AS184: 128.3604362 | AT184: -2.292858405 | AU184: -1.812816781 | AV184: -28.36539876 | AW184: -14.32125257 | AX184: 15.64714043
L185: 2012-06-21 | M185: 2012 | N185: 0.2878645885 | O185: -1.045371156 | P185: 0.7349749561 | Q185: 7.149350378 | R185: 58.69615682 | S185: 60.05454317 | T185: 8.209998632 | U185: -0.1775187254 | W185: 3.798605749 | X185: 7.149350378 | Y185: 27.15756345 | AA185: 8.209998632 | AB185: 6.251661924 | AQ185: 2012-06-21 | AR185: -55.32062539 | AS185: 103.2715285 | AT185: -1.866781652 | AU185: -1.023068018 | AV185: -51.42599035 | AW185: -8.082237341 | AX185: 50.26644315
L186: 2012-06-22 | M186: 2012 | N186: 0.3216255195 | O186: -0.07661271751 | P186: -0.2458896628 | Q186: 7.277654761 | R186: 58.35517777 | S186: 61.13229999 | T186: 8.018404236 | U186: -0.02361332775 | W186: 3.748042117 | X186: 7.277654761 | Y186: 27.27695656 | AA186: 8.018404236 | AB186: 5.086898773 | AQ186: 2012-06-22 | AR186: -54.5808867 | AS186: 101.4328233 | AT186: -1.858394566 | AU186: -0.1655409728 | AV186: -48.25287391 | AW186: -1.307773685 | AX186: 291.4859873
L187: 2012-06-23 | M187: 2012 | N187: -0.3405946764 | O187: 0.2365986375 | P187: 0.1970503776 | Q187: 7.170226283 | R187: 60.33752829 | S187: 60.22990078 | T187: 8.415010336 | U187: 0.0482776269 | W187: 3.898947859 | X187: 7.170226283 | Y187: 27.95633841 | AA187: 8.415010336 | AB187: 7.657187646 | AQ187: 2012-06-23 | AR187: -55.36425446 | AS187: 107.1111906 | AT187: -1.934663288 | AU187: -0.8418394663 | AV187: -38.4142724 | AW187: -6.650531784 | AX187: 45.63135126
L188: 2012-06-24 | M188: 2012 | N188: 1.155040181 | O188: 2.277553619 | P188: -0.1641867791 | Q188: 7.591411529 | R188: 78.54541542 | S188: 63.76785684 | T188: 10.3466154 | U188: 0.2066423956 | W188: 3.882144958 | X188: 7.591411529 | Y188: 29.47095999 | AA188: 10.3466154 | AB188: 22.00120263 | AQ188: 2012-06-24 | AR188: -52.70766204 | AS188: 161.7724774 | AT188: -3.069240243 | AU188: 1.930275944 | AV188: 21.61335971 | AW188: 15.24917996 | AX188: 11.19703106
L189: 2012-06-25 | M189: 2012 | N189: 0.02804413746 | O189: -0.2873821932 | P189: -3.486461528 | Q189: 7.61195072 | R189: 74.15048049 | S189: 63.94038604 | T189: 9.741324297 | U189: -0.06028237834 | W189: 2.318218899 | X189: 7.61195072 | Y189: 17.64616801 | AA189: 9.741324297 | AB189: 17.73481593 | AQ189: 2012-06-25 | AR189: -52.64316052 | AS189: 154.8753048 | AT189: -2.941983408 | AU189: 2.075649011 | AV189: 14.19461382 | AW189: 16.39762718 | AX189: 6.83863878
L190: 2012-06-26 | M190: 2012 | N190: -1.067924732 | O190: -1.408858446 | P190: -2.267166997 | Q190: 7.223480804 | R190: 59.22237733 | S190: 60.67723876 | T190: 8.198592747 | U190: -0.1724145499 | W190: 1.77125089 | X190: 7.223480804 | Y190: 12.7945968 | AA190: 8.198592747 | AB190: 6.258530997 | AQ190: 2012-06-26 | AR190: -55.09938741 | AS190: 121.0627021 | AT190: -2.197169657 | AU190: -0.3015234854 | AV190: -21.27565381 | AW190: -2.382035535 | AX190: 70.56051962
L191: 2012-06-27 | M191: 2012 | N191: -0.912123201 | O191: -0.8966370267 | P191: 0.3307534557 | Q191: 6.915340777 | R191: 52.20589893 | S191: 58.08886253 | T191: 7.549287969 | U191: -0.08250927327 | W191: 1.933483809 | X191: 6.915340777 | Y191: 13.37069942 | AA191: 7.549287969 | AB191: 1.690602679 | AQ191: 2012-06-27 | AR191: -57.19727077 | AS191: 99.54341346 | AT191: -1.740352505 | AU191: -2.290637804 | AV191: -42.47698094 | AW191: -18.09603865 | AX191: 18.54373522
L192: 2012-06-28 | M192: 2012 | N192: 0.2199385022 | O192: -0.2564933872 | P192: 1.268370674 | Q192: 7.008425552 | R192: 51.13162568 | S192: 58.87077464 | T192: 7.295736439 | U192: -0.03416312202 | W192: 2.317266451 | X192: 7.008425552 | Y192: 16.24038941 | AA192: 7.295736439 | AB192: 0.06828800365 | AQ192: 2012-06-28 | AR192: -56.69141221 | AS192: 93.38757217 | AT192: -1.647296628 | AU192: -1.651146277 | AV192: -45.68952969 | AW192: -13.04405558 | AX192: 27.67140037
L193: 2012-06-29 | M193: 2012 | N193: -1.10634037 | O193: -0.9315563301 | P193: 3.332111053 | Q193: 6.645888731 | R193: 45.408851 | S193: 55.82546534 | T193: 6.83262282 | U193: -0.06558151353 | W193: 3.327574153 | X193: 6.645888731 | Y193: 22.11468756 | AA193: 6.83262282 | AB193: 0 | AQ193: 2012-06-29 | AR193: -59.23599506 | AS193: 71.03022025 | AT193: -1.199105716 | AU193: -4.0700898 | AV193: -66.69329959 | AW193: -32.15370942 | AX193: 16.38619855
L194: 2012-06-30 | M194: 2012 | N194: -2.469956635 | O194: -2.448522811 | P194: -0.4238729973 | Q194: 5.86347733 | R194: 31.33928788 | S194: 49.25320958 | T194: 5.344829718 | U194: -0.2455789288 | W194: 3.226904281 | X194: 5.86347733 | Y194: 18.9208801 | AA194: 5.344829718 | AB194: 0 | AQ194: 2012-06-30 | AR194: -64.91689533 | AS194: 12.26567279 | AT194: -0.1889442298 | AU194: -9.595113938 | AV194: -126.3686571 | AW194: -75.80140011 | AX194: 13.1701049
L195: 2012-07-01 | M195: 2012 | N195: 0.1396211216 | O195: -0.1805468111 | P195: 1.198451207 | Q195: 5.935298463 | R195: 32.4554427 | S195: 49.85650709 | T195: 5.468207354 | U195: 0.02282115378 | W195: 3.761075196 | X195: 5.935298463 | Y195: 22.32310383 | AA195: 5.468207354 | AB195: 0 | AQ195: 2012-07-01 | AR195: -64.59576675 | AS195: 7.932549322 | AT195: -0.1228029285 | AU195: -9.049046434 | AV195: -125.2136615 | AW195: -71.48746683 | AX195: 13.83722168
L196: 2012-07-02 | M196: 2012 | N196: -0.925307208 | O196: -1.475318142 | P196: 1.400486322 | Q196: 5.697000484 | R196: 27.77070539 | S196: 47.85480406 | T196: 4.874618752 | U196: -0.1149089427 | W196: 4.455239193 | X196: 5.697000484 | Y196: 25.38149984 | AA196: 4.874618752 | AB196: 0 | AQ196: 2012-07-02 | AR196: -66.72397332 | AS196: -27.47508609 | AT196: 0.411772332 | AU196: -10.95913993 | AV196: -156.7576513 | AW196: -86.57720546 | AX196: 14.30382788
L197: 2012-07-03 | M197: 2012 | N197: -0.5655087405 | O197: -0.4482042729 | P197: 0.228826369 | Q197: 5.572924503 | R197: 28.05678809 | S197: 46.81256582 | T197: 5.034481998 | U197: 0.03226874395 | W197: 4.62924775 | X197: 5.572924503 | Y197: 25.79844821 | AA197: 5.034481998 | AB197: 0 | AQ197: 2012-07-03 | AR197: -68.02464343 | AS197: -38.23198864 | AT197: 0.562031445 | AU197: -12.01782079 | AV197: -161.3328672 | AW197: -94.94078421 | AX197: 13.42446938
L198: 2012-07-04 | M198: 2012 | N198: -1.751848204 | O198: -2.366341401 | P198: 0.2555441703 | Q198: 5.129879975 | R198: 20.92925636 | S198: 43.09099179 | T198: 4.079872523 | U198: -0.2102448971 | W198: 4.820266306 | X198: 5.129879975 | Y198: 24.7273876 | AA198: 4.079872523 | AB198: 0 | AQ198: 2012-07-04 | AR198: -72.0538943 | AS198: -95.02418226 | AT198: 1.318793151 | AU198: -15.79184889 | AV198: -214.4673347 | AW198: -124.7556063 | AX198: 13.58088823
L199: 2012-07-05 | M199: 2012 | N199: 0.2848914746 | O199: -1.216464778 | P199: 0.472203601 | Q199: 5.24236797 | R199: 19.9301584 | S199: 44.03589095 | T199: 3.801747324 | U199: -0.07060496037 | W199: 5.139599965 | X199: 5.24236797 | Y199: 26.94367423 | AA199: 3.801747324 | AB199: 0 | AQ199: 2012-07-05 | AR199: -71.3986439 | AS199: -124.2193369 | AT199: 1.739799668 | AU199: -14.83420039 | AV199: -233.9347742 | AW199: -117.1901831 | AX199: 15.76996185
L200: 2012-07-06 | M200: 2012 | N200: -0.1861813325 | O200: -1.297205217 | P200: -1.469917989 | Q200: 5.234012849 | R200: 18.97275765 | S200: 43.96570793 | T200: 3.624897033 | U200: -0.04763490004 | W200: 4.274431112 | X200: 5.234012849 | Y200: 22.37242736 | AA200: 3.624897033 | AB200: 0 | AQ200: 2012-07-06 | AR200: -71.82686097 | AS200: -155.3522621 | AT200: 2.162871383 | AU200: -14.97198995 | AV200: -253.5020941 | AW200: -118.2787206 | AX200: 16.93175689
L201: 2012-07-07 | M201: 2012 | N201: -1.897278081 | O201: -2.701301973 | P201: 0.6015397241 | Q201: 4.786999173 | R201: 14.43391199 | S201: 40.21079306 | T201: 3.01523177 | U201: -0.1841491836 | W201: 6.774579014 | X201: 4.786999173 | Y201: 32.42990414 | AA201: 3.01523177 | AB201: 0 | AQ201: 2012-07-07 | AR201: -76.19060056 | AS201: -220.1835095 | AT201: 2.889903845 | AU201: -19.04357966 | AV201: -308.0275599 | AW201: -150.4442793 | AX201: 16.17487707
... 924 more rows

Sheet Sheet2

Sheet Sheet3
